Workbook

Sheet ALL
A1: 1927-08-19 | B1: Mirek | C1: narozeniny | E1: =DATE(2000,MONTH(A1),DAY(A1)) -> 2000-08-19
A2: 1929-04-29 | B2: Jarmila | C2: narozeniny | E2: =DATE(2000,MONTH(A2),DAY(A2)) -> 2000-04-29
A3: 1930-02-04 | B3: Jarmila | C3: svátek | E3: =DATE(2000,MONTH(A3),DAY(A3)) -> 2000-02-04
A4: 1931-03-27 | B4: Kopčo | C4: narozeniny | E4: =DATE(2000,MONTH(A4),DAY(A4)) -> 2000-03-27
A5: 1932-01-17 | B5: Lukášová | C5: narozeniny
A6: 1935-06-28 | B6: tetaA | C6: narozeniny | E6: =DATE(2000,MONTH(A6),DAY(A6)) -> 2000-06-28
A7: 1935-08-13 | B7: tetaA | C7: svátek | E7: =DATE(2000,MONTH(A7),DAY(A7)) -> 2000-08-13
A8: 1940-04-07 | B8: Evža | C8: narozeniny
A9: 1941-06-06 | B9: Jindra | C9: narozeniny
A10: 1941-09-25 | B10: Aladár | C10: narozeniny
A11: 1942-09-22 | B11: taťkaV | C11: narozeniny | E11: =DATE(2000,MONTH(A11),DAY(A11)) -> 2000-09-22
A12: 1943-06-13 | B12: taťkaV | C12: svátek | E12: =DATE(2000,MONTH(A12),DAY(A12)) -> 2000-06-13
A13: 1943-08-22 | B13: Kamelský | C13: narozeniny
A14: 1944-09-12 | B14: Richter | C14: narozeniny
A15: 1944-12-09 | B15: mamkaV | C15: narozeniny | E15: =DATE(2000,MONTH(A15),DAY(A15)) -> 2000-12-09
A16: 1945-06-27 | B16: MarieŽ | C16: narozeniny
A17: 1945-09-12 | B17: Marie | C17: svátek | E17: =DATE(2000,MONTH(A17),DAY(A17)) -> 2000-09-12
A18: 1945-10-26 | B18: AlenkaH | C18: narozeniny
A19: 1945-10-26 | B19: AlenkaNow | C19: narozeniny | E19: =DATE(2000,MONTH(A19),DAY(A19)) -> 2000-10-26
A20: 1946-05-24 | B20: KarelBen | C20: narozeniny
A21: 1946-10-11 | B21: Racek | C21: narozeniny
A22: 1947-05-14 | B22: Hříbalka | C22: narozeniny | E22: =DATE(2000,MONTH(A22),DAY(A22)) -> 2000-05-14
A23: 1947-09-08 | B23: Horák | C23: narozeniny
A24: 1948-05-05 | B24: PetrČ | C24: narozeniny
A25: 1948-10-28 | B25: Jarda | C25: narozeniny
A26: 1949-03-13 | B26: Vlastička | C26: svátek
A27: 1949-04-27 | B27: Jarda | C27: svátek
A28: 1949-05-19 | B28: Vlastička | C28: narozeniny
A29: 1949-06-20 | B29: JanaA | C29: narozeniny
A30: 1949-06-20 | B30: JanaA | C30: narozeniny
A31: 1949-08-28 | B31: Zuzana | C31: narozeniny
A32: 1950-04-03 | B32: Zdeněk | C32: narozeniny
A33: 1950-04-08 | B33: Bohouš | C33: narozeniny
A34: 1950-04-15 | B34: LáďaK | C34: narozeniny
A35: 1950-05-26 | B35: Já | C35: narozeniny | E35: =DATE(2000,MONTH(A35),DAY(A35)) -> 2000-05-26
A36: 1950-05-26 | B36: MartinK | C36: narozeniny
A37: 1950-06-12 | B37: LáďaJ | C37: narozeniny
A38: 1950-06-27 | B38: LáďaJ | C38: svátek
A39: 1950-08-11 | B39: Zuzana | C39: svátek
A40: 1950-10-03 | B40: Bohouš | C40: svátek
A41: 1950-11-11 | B41: Já | C41: svátek
A42: 1951-01-23 | B42: Zdeněk | C42: svátek
A43: 1952-05-11 | B43: Tobíšek | C43: narozeniny | E43: =DATE(2000,MONTH(A43),DAY(A43)) -> 2000-05-11
A44: 1952-08-11 | B44: tatZuz | C44: svátek | E44: =DATE(2000,MONTH(A44),DAY(A44)) -> 2000-08-11
A45: 1952-08-16 | B45: Luďa | C45: narozeniny | E45: =DATE(2000,MONTH(A45),DAY(A45)) -> 2000-08-16
A46: 1952-08-17 | B46: LenkaKn | C46: narozeniny
A47: 1954-03-21 | B47: JanaT | C47: narozeniny | E47: =DATE(2000,MONTH(A47),DAY(A47)) -> 2000-03-21
A48: 1954-05-03 | B48: Madla | C48: narozeniny
A49: 1954-06-24 | B49: HonzaL | C49: svátek | E49: =DATE(2000,MONTH(A49),DAY(A49)) -> 2000-06-24
A50: 1954-07-25 | B50: Olda | C50: narozeniny
A51: 1955-02-27 | B51: HonzaL | C51: narozeniny | E51: =DATE(2000,MONTH(A51),DAY(A51)) -> 2000-02-27
A52: 1955-03-05 | B52: Eliška | C52: narozeniny
A53: 1955-07-03 | B53: Olda | C53: svátek
A54: 1955-07-22 | B54: ZdenkaK | C54: narozeniny
A55: 1955-10-03 | B55: LenkaR | C55: narozeniny | E55: =DATE(2000,MONTH(A55),DAY(A55)) -> 2000-10-03
A56: 1955-10-05 | B56: Eliška | C56: svátek
A57: 1955-11-14 | B57: Jířa | C57: narozeniny
A58: 1955-11-17 | B58: VláďaS | C58: narozeniny | E58: =DATE(2000,MONTH(A58),DAY(A58)) -> 2000-11-17
A59: 1956-02-15 | B59: Jířa | C59: svátek
A60: 1956-02-21 | B60: LenkaR | C60: svátek | E60: =DATE(2000,MONTH(A60),DAY(A60)) -> 2000-02-21
A61: 1956-05-23 | B61: VláďaS | C61: svátek | E61: =DATE(2000,MONTH(A61),DAY(A61)) -> 2000-05-23
A62: 1956-05-24 | B62: Jana | C62: svátek
A63: 1956-06-18 | B63: ČernohotskáH | C63: narozeniny
A64: 1957-03-29 | B64: EvaF | C64: narozeniny | E64: =DATE(2000,MONTH(A64),DAY(A64)) -> 2000-03-29
A65: 1957-04-16 | B65: Kříž | C65: narozeniny | E65: =DATE(2000,MONTH(A65),DAY(A65)) -> 2000-04-16
A66: 1957-04-22 | B66: PetrF | C66: narozeniny | E66: =DATE(2000,MONTH(A66),DAY(A66)) -> 2000-04-22
A67: 1957-06-29 | B67: Petr | C67: svátek | E67: =DATE(2000,MONTH(A67),DAY(A67)) -> 2000-06-29
A68: 1957-09-08 | B68: DanaČ | C68: narozeniny
A69: 1957-12-24 | B69: EvaF | C69: svátek | E69: =DATE(2000,MONTH(A69),DAY(A69)) -> 2000-12-24
A70: 1959-03-25 | B70: ZdenkaT | C70: narozeniny
A71: 1959-04-22 | B71: Libor | C71: narozeniny
A72: 1959-06-23 | B72: Zdenka | C72: svátek
A73: 1959-07-23 | B73: Libor | C73: svátek
A74: 1959-10-04 | B74: JanaN | C74: narozeniny
A75: 1960-05-23 | B75: Markvartová | C75: narozeniny
A76: 1962-06-19 | B76: Standa | C76: narozeniny | E76: =DATE(2000,MONTH(A76),DAY(A76)) -> 2000-06-19
A77: 1963-11-03 | B77: Ally | C77: narozeniny
A78: 1964-01-21 | B78: MartinB | C78: narozeniny
A79: 1964-08-13 | B79: Ally | C79: svátek
A80: 1964-09-28 | B80: Květa | C80: narozeniny
A81: 1964-12-08 | B81: Květa | C81: svátek
A82: 1965-07-29 | B82: TondaV | C82: narozeniny | E82: =DATE(2000,MONTH(A82),DAY(A82)) -> 2000-07-29
A83: 1965-08-05 | B83: Kateřina | C83: narozeniny
A84: 1965-11-25 | B84: Kateřina | C84: svátek
A85: 1966-03-24 | B85: Radka | C85: narozeniny | E85: =DATE(2000,MONTH(A85),DAY(A85)) -> 2000-03-24
A86: 1966-09-14 | B86: Radka | C86: svátek | E86: =DATE(2000,MONTH(A86),DAY(A86)) -> 2000-09-14
A87: 1968-06-13 | B87: Tonda | C87: svátek | E87: =DATE(2000,MONTH(A87),DAY(A87)) -> 2000-06-13
A88: 1969-04-06 | B88: Áňa | C88: narozeniny
A89: 1970-02-19 | B89: Dáša | C89: narozeniny
A90: 1970-12-20 | B90: Dáša | C90: svátek
A91: 1971-07-12 | B91: Andrea | C91: narozeniny
A92: 1972-06-29 | B92: Andrea | C92: svátek
A93: 1977-04-12 | B93: Kolářová | C93: narozeniny
A94: 1977-04-17 | B94: Sylva | C94: narozeniny | E94: =DATE(2000,MONTH(A94),DAY(A94)) -> 2000-04-17
A95: 1977-10-29 | B95: Sylva | C95: svátek | E95: =DATE(2000,MONTH(A95),DAY(A95)) -> 2000-10-29
A96: 1978-04-29 | B96: PetrK | C96: narozeniny | E96: =DATE(2000,MONTH(A96),DAY(A96)) -> 2000-04-29
A97: 1979-03-29 | B97: Jura | C97: narozeniny | E97: =DATE(2000,MONTH(A97),DAY(A97)) -> 2000-03-29
A98: 1979-04-24 | B98: Jura | C98: svátek | E98: =DATE(2000,MONTH(A98),DAY(A98)) -> 2000-04-24
A99: 1979-06-08 | B99: Petra | C99: narozeniny | E99: =DATE(2000,MONTH(A99),DAY(A99)) -> 2000-06-08
A100: 1979-08-17 | B100: Petra | C100: svátek | E100: =DATE(2000,MONTH(A100),DAY(A100)) -> 2000-08-17
A101: 1979-08-24 | B101: Šárka | C101: narozeniny | E101: =DATE(2000,MONTH(A101),DAY(A101)) -> 2000-08-24
A102: 1980-05-03 | B102: KeclíkováB | C102: narozeniny
A103: 1980-06-30 | B103: Šárka | C103: svátek | E103: =DATE(2000,MONTH(A103),DAY(A103)) -> 2000-06-30
A104: 1981-07-24 | B104: StainerováA | C104: narozeniny
A105: 1981-12-22 | B105: Renča | C105: narozeniny
A106: 1983-10-24 | B106: Aleš | C106: narozeniny | E106: =DATE(2000,MONTH(A106),DAY(A106)) -> 2000-10-24
A107: 1984-04-13 | B107: Aleš | C107: svátek | E107: =DATE(2000,MONTH(A107),DAY(A107)) -> 2000-04-13
A108: 1984-08-15 | B108: Libuška | C108: narozeniny
A109: 1985-01-13 | B109: Mařenka | C109: narozeniny | E109: =DATE(2000,MONTH(A109),DAY(A109)) -> 2000-01-13
A110: 1986-09-05 | B110: OndraT | C110: narozeniny | E110: =DATE(2000,MONTH(A110),DAY(A110)) -> 2000-09-05
A111: 1988-06-07 | B111: Helča | C111: narozeniny
A112: 1994-08-07 | B112: Julianna | C112: narozeniny
A113: 2003-03-06 | B113: Mirek | C113: svátek | E113: =DATE(2000,MONTH(A113),DAY(A113)) -> 2000-03-06
A114: 2008-01-01 | C114: S
A115: 2008-05-01 | C115: S
A116: 2008-05-08 | C116: S
A117: 2008-07-05 | C117: S
A118: 2008-07-06 | C118: S
A119: 2008-09-28 | C119: S
A120: 2008-10-28 | C120: S
A121: 2008-11-17 | C121: S
A122: 2008-12-24 | C122: S
A123: 2008-12-25 | C123: S
A124: 2008-12-26 | C124: S
A125: 2009-04-12 | C125: V
A126: 2009-04-13 | C126: V
A127: 2009-04-23 | B127: Vojta | C127: svátek | E127: =DATE(2000,MONTH(A127),DAY(A127)) -> 2000-04-23
A128: 2009-10-18 | B128: Vojta | C128: narozeniny | E128: =DATE(2000,MONTH(A128),DAY(A128)) -> 2000-10-18
A129: 2010-04-04 | C129: V
A130: 2010-04-05 | C130: V
A131: 2010-09-18 | B131: VýročíAMHouska | C131: narozeniny
A132: 2011-03-31 | B132: PojistPř | C132: svátek | E132: =DATE(2000,MONTH(A132),DAY(A132)) -> 2000-03-31
A133: 2011-04-15 | B133: Lucie | C133: narozeniny | E133: =DATE(2000,MONTH(A133),DAY(A133)) -> 2000-04-15
A134: 2011-04-24 | C134: V
A135: 2011-04-25 | C135: V
A136: 2011-06-01 | B136: PojistAut | C136: svátek | E136: =DATE(2000,MONTH(A136),DAY(A136)) -> 2000-06-01
A137: 2011-08-19 | B137: PojistPř | C137: svátek | E137: =DATE(2000,MONTH(A137),DAY(A137)) -> 2000-08-19
A138: 2011-12-13 | B138: Lucie | C138: svátek | E138: =DATE(2000,MONTH(A138),DAY(A138)) -> 2000-12-13
A139: 2012-04-03 | B139: Richard | C139: svátek | E139: =DATE(2000,MONTH(A139),DAY(A139)) -> 2000-04-03
A140: 2012-04-09 | C140: V
A141: 2012-07-23 | B141: Richard | C141: narozeniny | E141: =DATE(2000,MONTH(A141),DAY(A141)) -> 2000-07-23
A142: 2013-04-01 | C142: V
A143: 2013-08-01 | B143: Denisa | C143: narozeniny | E143: =DATE(2000,MONTH(A143),DAY(A143)) -> 2000-08-01
A144: 2013-08-01 | B144: Tereza | C144: narozeniny | E144: =DATE(2000,MONTH(A144),DAY(A144)) -> 2000-08-01
A145: 2013-09-11 | B145: Deniska | C145: svátek | E145: =DATE(2000,MONTH(A145),DAY(A145)) -> 2000-09-11
A146: 2013-10-15 | B146: Tereza | C146: svátek | E146: =DATE(2000,MONTH(A146),DAY(A146)) -> 2000-10-15
A147: 2014-02-15 | B147: Ondra | C147: narozeniny | E147: =DATE(2000,MONTH(A147),DAY(A147)) -> 2000-02-15
A148: 2014-04-21 | C148: V
A149: 2014-07-04 | B149: Barborka | C149: narozeniny | E149: =DATE(2000,MONTH(A149),DAY(A149)) -> 2000-07-04
A150: 2014-11-30 | B150: Ondrové | C150: svátek | E150: =DATE(2000,MONTH(A150),DAY(A150)) -> 2000-11-30
A151: 2014-12-04 | B151: Barborka | C151: svátek | E151: =DATE(2000,MONTH(A151),DAY(A151)) -> 2000-12-04
A152: 2015-02-25 | B152: TKO | C152: svátek
A153: 2015-03-25 | B153: DaňZisk | C153: svátek | E153: =DATE(2000,MONTH(A153),DAY(A153)) -> 2000-03-25
A154: 2015-04-06 | C154: V
A155: 2015-05-25 | B155: DaňNemov | C155: svátek
A156: 2016-03-25 | C156: V
A157: 2016-03-28 | C157: V
A158: 2017-04-14 | C158: V
A159: 2017-04-15 | C159: V
A160: 2017-04-16 | C160: V
A161: 2017-04-17 | C161: V
A162: 2018-02-28 | B162: OndraT | C162: narozeniny | E162: =DATE(2000,MONTH(A162),DAY(A162)) -> 2000-02-28
A163: 2018-03-30 | C163: V
A164: 2018-03-31 | C164: V
A165: 2018-04-01 | C165: V
A166: 2018-04-02 | C166: V
A167: 2019-04-19 | C167: V
A168: 2019-04-20 | C168: V
A169: 2019-04-21 | C169: V
A170: 2019-04-22 | C170: V
A171: 2020-04-10 | C171: V
A172: 2020-04-11 | C172: V
A173: 2020-04-12 | C173: V
A174: 2020-04-13 | C174: V
A175: 2021-01-31 | B175: přiznání nemovitost | C175: svátek
A176: 2021-03-20 | B176: PřiznáníZiskZaplatit | C176: svátek
A177: 2021-04-02 | C177: V
A178: 2021-04-03 | C178: V
A179: 2021-04-04 | C179: V
A180: 2021-04-05 | C180: V
A181: 2021-05-20 | B181: ZaplatitDvěDaně | C181: svátek
A182: 2022-04-15 | C182: V
A183: 2022-04-16 | C183: V
A184: 2022-04-17 | C184: V
A185: 2022-04-18 | C185: V
A186: 2023-04-07 | C186: V
A187: 2023-04-08 | C187: V
A188: 2023-04-09 | C188: V
A189: 2023-04-10 | C189: V
A190: 2024-03-29 | C190: V
A191: 2024-03-30 | C191: V
A192: 2024-03-31 | C192: V
A193: 2024-04-01 | C193: V
A194: 2025-04-18 | C194: V
A195: 2025-04-19 | C195: V
A196: 2025-04-20 | C196: V
A197: 2025-04-21 | C197: V
A198: 2025-05-26 | C198: V
A199: 2025-11-18 | B199: RomanaKeramika | C199: svátek
A200: 2026-04-03 | C200: V
... 131 more rows

Sheet H
A1: webftp.forpsi.com | B1: tobisekeu | C1: a7p*K4Rb59
A2: webftp.forpsi.com | B2: webftp.forpsi.com | C2: eeKgRMp3h
A3: tobisek.com | B3: postmaster@tobisek.com | C3: $%Mx52zLSd@ou8e1
A4: tobisek.com | B4: postmaster@tobisek.com | C4: $%Mx52zLSd@ou8e1
A5: tobisek.com | B5: admin | C5: $%Mx52zLSd@ou8e1
A6: webmail.forpsi.com | B6: postmaster@tobisek.eu | C6: $V&U8fmp25
A7: patecnici.cz | B7: martin@kadlas.com | C7: ?Puma2001Puma2001!
A8: patecnici.cz | C8: ?Puma2001Puma2001!
A9: tobisek.eu | B9: info@tobisek.eu | C9: ~KYDI&h}#j*oF0kd
A10: olsanka.e-rezervace.cz | B10: fiser22 | C10: 15165
A11: olsanka.e-rezervace.cz | B11: fiser | C11: 15165
A12: t-mobile.cz | B12: kadlasmi | C12: 19501950
A13: ib24.csob.cz | B13: 14353245 | C13: 23812
A14: portal.pranet.cz | B14: 2566 | C14: 2566
A15: my.medevio.cz | B15: 739 694 648 | C15: 2992
A16: tobisek.com | B16: w07partpro | C16: 2fMQw7jENL
A17: dpdkuryr.cz | B17: 13865011037518 | C17: 3091
A18: rychlost.cz | B18: kadlasm | C18: 313696
A19: centrum.active24.cz | B19: egeehso4 | C19: 5mQP3cCzZF
A20: cp.forpsi.com | B20: kadlas.com | C20: 6339d36Qf
A21: kadlas.com | B21: kadlascom | C21: 6339d36Qf
A22: t-mobile.cz | C22: 6752
A23: active24.cz | B23: egeejqd0 | C23: 6iF3tUBvLS
A24: account.themler.io | B24: jtobi52@gmail.com | C24: 6n86U6e9C8FxHySB
A25: kadlasm.synology.me:50803 | C25: 87654321
A26: olsanka.e-rezervace.cz | B26: fiserova | C26: 9829
A27: tobisek.com | B27: f112994 | C27: 9EXVLr3
A28: admin.forpsi.com | B28: 252510E7 | C28: A=Gb9yFkQn
A29: poliklinikaprosek.cz | B29: admin | C29: a7pK4_Rb59
A30: tobisek.eu | B30: admin | C30: a93MRIO6iZpI*uTlOqoriIrm
A31: aerobic-lea.cz.uvirt81.active24.cz | B31: admin | C31: bCKfe4VSEQ
A32: aerobic-lea.cz.uvirt81.active24.cz | B32: armin | C32: bCKfe4VSEQ
A33: voda-info.cz | B33: +420739694648 | C33: bfa6931a08
A34: portal.234.cz | B34: martin@kadlas.com | C34: bNjKMKaC
A35: login.szn.cz | B35: a.knizetova | C35: cusbus
A36: demo.joomlathat.com | B36: demoadmin | C36: demoadmin
A37: ib.csob.cz | B37: 14353245 | C37: DYd6l
A38: naprase.cz | B38: admin | C38: E1Ac3sDrAW
A39: naprase.cz | B39: Admin | C39: E1Ac3sDrAW
A40: naprase.cz | B40: Tobi | C40: E1Ac3sDrAW
A41: naprase.cz | B41: postmaster@tobisek.com | C41: E1Ac3sDrAW
A42: rc.active24.cz | B42: info@kadlas.eu | C42: E1Ac3sDrAW
A43: login.szn.cz | B43: jiri.tobisek | C43: gabi49
A44: odkarla.cz | B44: martin@kadlas.com | C44: gGpXwZ8WBnJK
A45: csfd.cz | B45: martin@kadlas.com | C45: gi9pmicl
A46: teploty.info | B46: pkadlas | C46: heslo
A47: online.postservis.cz | B47: KadlasMartin | C47: Ibfmor
A48: fotkamobilem.cz | B48: martin@kadlas.com | C48: IGVDXogJoPq0
A49: w06.part-proweb.cz | B49: admin | C49: K2Lt&%y!VB79%n2j
A50: vysledky.prevedig.cz:8443 | B50: v3N4fVJDPn5Q | C50: K7C6TcMt
A51: kadlas.eu | B51: Kad | C51: Kad1
A52: czfree.net | B52: MaKa | C52: KaMa
A53: mysql.active24.com | B53: w06partpcz | C53: kIRHe7w4ER
A54: login.microsoftonline.com | B54: a.knizetova@seznam.cz | C54: klecanska
A55: amazon.co.uk | B55: pkadlas@gmail.com | C55: Konevova61
A56: gateway.hbogo.cz | B56: pkadlas@gmail.com | C56: Konevova61
A57: rohlik.cz | B57: pkadlas@gmail.com | C57: Konevova61
A58: aerobic-lea.cz | B58: ltrejbalova | C58: ltrejbalova123
A59: teploty.info | B59: mkadlas | C59: m
A60: fotoskoda.cz | B60: martin@kadlas.com | C60: ma2001P
A61: login.szn.cz | B61: a.knizetova@seznam.cz | C61: martinalena
A62: aerobic-lea.cz | B62: petrdani@volny.cz | C62: Michaela
A63: softcom.cz | B63: 89kadlaka | C63: mk4671
A64: conrad.cz | B64: kadlasm | C64: MKad1950
A65: dir.hw.cz | B65: kadlasm | C65: MKad1950
A66: dropbox.com | B66: martin@kadlas.com | C66: MKad1950
A67: email.forpsi.com | B67: kadlasm@seznam.cz | C67: MKad1950
A68: forum.xda-developers.com | B68: kadlasm | C68: MKad1950
A69: mail.kadlas.com | B69: kadlas.com | C69: MKad1950
A70: pipni.cz | B70: kadlas.com | C70: MKad1950
A71: web.pipni.cz | B71: kadlas.com | C71: MKad1950
A72: webmail.forpsi.com | B72: postmaster@kadlas.com | C72: MKad1950
A73: webmail.pipni.cz | B73: martin@kadlas.com | C73: MKad1950
A74: webmail.pipni.cz | B74: martin@kadlas.eu | C74: MKad1950
A75: login.live.com | B75: kadlasm@outlook.cz | C75: MKad1950@MKad1950
A76: mojeid.cz | B76: reJasFFV | C76: MKad1950@MKad1950
A77: mojeid.cz | C77: MKad1950@MKad1950@
A78: email.forpsi.com | B78: kadlasm@gmail.com | C78: MKad1950MKad1950
A79: email.forpsi.com | B79: mkadlas@gmail.com | C79: MKad1950MKad1950
A80: mail.kadlas.com | B80: martin@kadlas.com | C80: MKad1950MKad1950
A81: login.live.com | B81: martin@kadlas.com | C81: MuryinVII2013
A82: kadlasm.synology.me:50803 | B82: kadlasm | C82: Murzin2013@Murzin2013
A83: nasinformace.cz4.quickconnect.to | B83: kadlasm | C83: Murzin2013@Murzin2013
A84: login.live.com | B84: mkadlas@gmail.com | C84: MurzinVII2013
A85: mail.google.com | B85: kadlasm | C85: MurzinVII2013@
A86: mail.google.com | B86: kadlasm@outlook.cz | C86: MurzinVII2013@@
A87: account.live.com | C87: MurzinVII2013@MurzinVII2013
A88: account.live.com | B88: kadlasm@outlook.cz | C88: MurzinVII2013MurzinVII2013
A89: kadlas.com | B89: f91846 | C89: nMNSSE4
A90: webmysql.forpsi.com | B90: f91846 | C90: nMNSSE4
A91: n3.rajce.idnes.cz | B91: N3 | C91: novatrojka
A92: vydrysek.auksys.com | B92: kadlasova lucie | C92: OD23MhJM21L
A93: member.loaris.com | B93: martin@kadlas.com | C93: oracQt2kCjFs
A94: portal-auth-ppt.ncpeh.cz | B94: sscoddq7 | C94: password
A95: poliklinikaprosek.cz | B95: tobi | C95: Poliklinika
A96: poliklinikaprosek.cz | B96: Tobi | C96: Poliklinika
A97: poliklinikaprosek.cz | B97: Tobi | C97: Poliklinika
A98: kadlas.com | B98: tobitobitobi | C98: PPG0szb5yz1IQewMIP3z6ihX6ffCrf9q
A99: lekari.poliklinikaprosek.cz | B99: admin | C99: prosek
A100: t-mobile.cz | B100: 739694648 | C100: ptwjdgpg
A101: 4home.cz | B101: martin@kadlas.com | C101: Puma2001
A102: acc.bontia.cz | B102: martin@kadlas.com | C102: Puma2001
A103: account.by.me | B103: martin@kadlas.com | C103: Puma2001
A104: account.here.com | B104: martin@kadlas.com | C104: Puma2001
A105: account.nokia.com | B105: martin@kadlas.com | C105: Puma2001
A106: account.synology.com | B106: martin@kadlas.com | C106: Puma2001
A107: account.zoner.com | B107: martin@kadlas.com | C107: Puma2001
A108: accounts.firefox.com | B108: mkadlas@gmail.com | C108: Puma2001
A109: accounts.google.com | B109: naprase@gmail.com | C109: Puma2001
A110: accounts.myherbalife.com | B110: martin@kadlas.com | C110: Puma2001
A111: accubattery.zendesk.com | B111: martin@kadlas.com | C111: Puma2001
A112: accubattery.zendesk.com | B112: mkadlas@gmail.com | C112: Puma2001
A113: aerobic-lea.cz | B113: kadlasm | C113: Puma2001
A114: aerobic-lea.cz.uvirt81.active24.cz | B114: kadlasm | C114: Puma2001
A115: aiomica.com | B115: martin@kadlas.com | C115: Puma2001
A116: akcie.cz | B116: kadlasm | C116: Puma2001
A117: akcniceny.cz | B117: martin@kadlas.com | C117: Puma2001
A118: akcniceny.cz | B118: kadlasm | C118: Puma2001
A119: akeeba.com | B119: kadlasm | C119: Puma2001
A120: akeebabackup.com | B120: kadlasm | C120: Puma2001
A121: akva-exo.cz | B121: kadlasm | C121: Puma2001
A122: allegro.cz | B122: martin@kadlas.com | C122: Puma2001
A123: alza.cz | B123: martin@kadlas.com | C123: Puma2001
A124: alza.cz | B124: martin@kadlas.com | C124: Puma2001
A125: app.gglot.com | B125: martin@kadlas.com | C125: Puma2001
A126: app.tabidoo.cloud | B126: martin@kadlas.com | C126: Puma2001
A127: artio.net | B127: kadlasm | C127: Puma2001
A128: asm.cz | B128: Martin Kadlas | C128: Puma2001
A129: asm.cz | B129: kadlasm | C129: Puma2001
A130: asm.cz | B130: martin@kadlas.com | C130: Puma2001
A131: asm.sk | B131: kadlasm | C131: Puma2001
A132: atlasformen.cz | B132: martin@kadlas.com | C132: Puma2001
A133: audiolibrix.com | B133: martin@kadlas.com | C133: Puma2001
A134: autokelly.cz | B134: martin@kadlas.com | C134: Puma2001
A135: avenberg.cz | B135: martin@kadlas.com | C135: Puma2001
A136: barvylakyjanu.cz | B136: kadlasm | C136: Puma2001
A137: bezvasport.cz | B137: martin@kadlas.com | C137: Puma2001
A138: bioagens.eu | B138: kadlasm | C138: Puma2001
A139: bongovo.cz | B139: kadlasm | C139: Puma2001
A140: booking.com | B140: martin@kadlas.com | C140: Puma2001
A141: cd.cz | B141: MARTIN@kadlas.com | C141: Puma2001
A142: centralniregistrdluzniku.cz | B142: kadlasm | C142: Puma2001
A143: ceskatelevize.cz | B143: kadlasm | C143: Puma2001
A144: ceskycmelak.cz | B144: martin@kadlas.com | C144: Puma2001
A145: ceskycmelak.cz | B145: kadlasm | C145: Puma2001
A146: cez.cz | B146: KADLASM195 | C146: Puma2001
A147: cezonline.cez.cz | B147: KADLASM195 | C147: Puma2001
A148: cezonline.cez.cz | B148: kadlasm | C148: Puma2001
A149: cezonline.cez.cz | B149: martin@kadlas.com | C149: Puma2001
A150: cinemacity.cz | B150: martin@kadlas.com | C150: Puma2001
A151: cleverbot.com | B151: kadlasm | C151: Puma2001
A152: cleverbot.com | B152: martin@kadlas.com | C152: Puma2001
A153: cloudconvert.com | B153: martin@kadlas.com | C153: Puma2001
A154: cloudconvert.com | B154: kadlasm | C154: Puma2001
A155: clubinspire.cz | B155: Kadlasm | C155: Puma2001
A156: clubinspire.cz | B156: Kadlas | C156: Puma2001
A157: cmelaciplus.cz | B157: martin@kadlas.com | C157: Puma2001
A158: connect.sanitas-online.de | B158: martin@kadlas.com | C158: Puma2001
A159: course.elementsofai.com | B159: martin@kadlas.com | C159: Puma2001
A160: creator.echoes.xyz | B160: martin@kadlas.com | C160: Puma2001
A161: creator-beta.echoes.xyz | B161: martin@kadlas.com | C161: Puma2001
A162: creator-beta.echoes.xyz | B162: mkadlas@gmail.com | C162: Puma2001
A163: cs.factcool.com | B163: martin@Kadlas.com | C163: Puma2001
A164: csfd.cz | B164: kadlasm | C164: Puma2001
A165: csfd.cz | C165: Puma2001
A166: cz.hecht.cz | B166: martin@kadlas.com | C166: Puma2001
A167: cz.pinterest.com | C167: Puma2001
A168: dalkove-ovladace.cz | B168: martin@kadlas.com | C168: Puma2001
A169: data.pvk.cz | B169: martin@kadlas.com | C169: Puma2001
A170: datart.cz | B170: martin@kadlas.com | C170: Puma2001
A171: datoid.cz | B171: martin@kadlas.com | C171: Puma2001
A172: decodoma.cz | B172: martin@kadlas.com | C172: Puma2001
A173: digi.ceskearchivy.cz | B173: kadlasm | C173: Puma2001
A174: dip.cezdistribuce.cz | B174: kadlasm | C174: Puma2001
A175: disneyplus.com | B175: martin@kadlas.com | C175: Puma2001
A176: disneyplus.com | B176: mkadlas@gmail.com | C176: Puma2001
A177: disqus.com | B177: martin@kadlas.com | C177: Puma2001
A178: dm.cz | B178: martin@kadlas.com | C178: Puma2001
A179: doltak.cz | B179: martin@kadlas.com | C179: Puma2001
A180: domacipotreby.cz | B180: 739 694 648 | C180: Puma2001
A181: domainmaster.cz | B181: GR:MARTIN-KADLAS | C181: Puma2001
A182: dreamstime.com | B182: martin@kadlas.com | C182: Puma2001
A183: dropbox.com | B183: mkadlas@gmail.com | C183: Puma2001
A184: dumzahrada.cz | B184: martin@kadlas.com | C184: Puma2001
A185: dymky-tabak-doutniky.cz | B185: MARTIN@KADLAS.COM | C185: Puma2001
A186: ebadatelna.soapraha.cz | B186: martin@kadlas.com | C186: Puma2001
A187: ebooks-books.com | B187: martin@kadlas.com | C187: Puma2001
A188: ecomarket.cz | B188: martin@kadlas.com | C188: Puma2001
A189: ecomarket.cz | B189: kadlas | C189: Puma2001
A190: ecomarket.cz | B190: kadlasm | C190: Puma2001
A191: elektroeden.cz | B191: martin@kadlas.com | C191: Puma2001
A192: eshop.milujuprahu.cz | B192: martin@kadlas.com | C192: Puma2001
A193: europarfemy.cz | B193: martin@kadlas.com | C193: Puma2001
A194: excelforum.com | B194: Martin Kadlas | C194: Puma2001
A195: expert.cz | B195: martin@kadlas.com | C195: Puma2001
A196: extensioncoder.com | B196: martin@kadlas.com | C196: Puma2001
A197: extensions.joomla.org | B197: kadlasm | C197: Puma2001
A198: fastshare.cz | B198: martin@kadlas.com | C198: Puma2001
A199: fastshare.cz | B199: kadlasm | C199: Puma2001
A200: fdb.cz | B200: kadlasm | C200: Puma2001
... 301 more rows

Sheet Jistota
A1: leden.2026:
A3: 910/3A | B3: 35000
A4: 910/3B | B4: 35000
A5: 910/12 | B5: 19500
B6: =SUM(B3:B5) -> 89500

Sheet Parametry
A1: Minulost? | B1: NE
A5: php | B5: 244
A6: ini | B6: 176
A7: html | B7: 3
A8: xml | B8: 3
A9: php-dist | B9: 1
A10: 5-stable-full_package rozbaleno\installation\copyright | B10: 1
A11: 5-stable-full_package rozbaleno\installation\credits | B11: 1
A12: ico | B12: 1
A13: 5-stable-full_package rozbaleno\installation\install | B13: 1
A14: 5-stable-full_package rozbaleno\installation\licenses | B14: 1
A15: js | B15: 1
A16: png | B16: 1
A17: css | B17: 2
A18: sql | B18: 14

Sheet Televize
A1: A11 | B1: 9 | D1: NOVA CINEMA | E1: 1
A2: ABC | B2: 55 | D2: TV NOE | E2: 3
A3: BARRANDOV KRIMI | B3: 5 | D3: TV BARRANDOV | E3: 4
A4: BARRANDOV KRIMI | B4: 65 | D4: BARRANDOV KRIMI | E4: 5
A5: CNN PRIMA NEWS | B5: 32 | D5: KINO BARRANDOV | E5: 6
A6: CNN PRIMA NEWS | B6: 83 | D6: SEZNAM,CZ | E6: 7
A7: CNN PRIMA SHOW | B7: 34 | D7: SPORT TV8 | E7: 8
A8: CNN PRIMA SHOW | B8: 80 | D8: A11 | E8: 9
A9: CNN PRIMA STAR | B9: 33 | D9: SPEKTRUM HOME | E9: 10
A10: CNN PRIMA STAR | B10: 76 | D10: WARNER TV | E10: 11
A11: CS MYSTERY | B11: 54 | D11: HIT TV | E11: 12
A12: CS MYSTERY | B12: 71 | D12: TEST 1 | E12: 13
A13: CT | B13: 14 | D13: TEST 2 | E13: 14
A14: CT D/ART | B14: 20 | D14: CT | E14: 14
A15: CT D/ART | B15: 62 | D15: DVTV EXTRA | E15: 15
A16: CT SPORT | B16: 61 | D16: CT1 | E16: 16
A17: CT1 | B17: 16 | D17: CT2 | E17: 17
A18: CT1 | B18: 21 | D18: CT24 | E18: 18
A19: CT1 | B19: 22 | D19: SPORT | E19: 19
A20: CT1 | B20: 23 | D20: CT D/ART | E20: 20
A21: CT1 | B21: 24 | D21: CT1 | E21: 21
A22: CT1 | B22: 58 | D22: CT1 | E22: 22
A23: CT2 | B23: 17 | D23: CT1 | E23: 23
A24: CT2 | B24: 59 | D24: CT1 | E24: 24
A25: CT24 | B25: 18 | D25: PRIMA LOVE | E25: 25
A26: CT24 | B26: 60 | D26: PRIMA ZOOM | E26: 26
A27: DB TEST | B27: 45 | D27: PRIMA MAX | E27: 27
A28: DB TEST2 | B28: 48 | D28: PRIMA | E28: 28
A29: DVTV EXTRA | B29: 15 | D29: PRIMA COOL | E29: 29
A30: FILM BOX O2+ | B30: 82 | D30: PRIMA KRIMI | E30: 30
A31: HIT TV | B31: 12 | D31: PRIMA+1 | E31: 31
A32: JOJ FAMILY | B32: 49 | D32: CNN PRIMA NEWS | E32: 32
A33: KINO BARRANDOV | B33: 6 | D33: CNN PRIMA STAR | E33: 33
A34: KINO BARRANDOV | B34: 64 | D34: CNN PRIMA SHOW | E34: 34
A35: MNAM TV | B35: 84 | D35: RETRO MUSIC | E35: 35
A36: NALADTE SI | B36: 38 | D36: OCKO | E36: 36
A37: NOVA | B37: 42 | D37: OCKO STAR | E37: 37
A38: NOVA | B38: 66 | D38: NALADTE SI | E38: 38
A39: NOVA | B39: 1008 | D39: NOVA ACTION | E39: 39
A40: NOVA ACTION | B40: 39 | D40: NOVA FUN | E40: 40
A41: NOVA ACTION | B41: 68 | D41: NOVA GOLD | E41: 41
A42: NOVA CINEMA | B42: 1 | D42: NOVA | E42: 42
A43: NOVA CINEMA | B43: 69 | D43: NOVA LADY | E43: 43
A44: NOVA FUN | B44: 40 | D44: PARAMOUT NEW | E44: 44
A45: NOVA FUN | B45: 81 | D45: DB TEST | E45: 45
A46: NOVA GOLD | B46: 41 | D46: PREMOM | E46: 46
A47: NOVA LADY | B47: 43 | D47: DB TEST2 | E47: 48
A48: OCKO | B48: 36 | D48: JOJ FAMILY | E48: 49
A49: OCKO STAR | B49: 37 | D49: RELAX | E49: 50
A50: OK | B50: 77 | D50: REBEL | E50: 51
A51: PARAMOUT NEW | B51: 44 | D51: SLAGER ORIGINAL | E51: 52
A52: PRAHA TV | B52: 56 | D52: SLAGER MUSIC | E52: 53
A53: PREMOM | B53: 46 | D53: CS MYSTERY | E53: 54
A54: PRIMA | B54: 28 | D54: ABC | E54: 55
A55: PRIMA | B55: 67 | D55: PRAHA TV | E55: 56
A56: PRIMA COOL | B56: 29 | D56: TELEVIZE PŘES | E56: 58
A57: PRIMA COOL | B57: 70 | D57: CT1 | E57: 58
A58: PRIMA KRIMI | B58: 30 | D58: CT2 | E58: 59
A59: PRIMA KRIMI | B59: 79 | D59: CT24 | E59: 60
A60: PRIMA LOVE | B60: 25 | D60: CT SPORT | E60: 61
A61: PRIMA LOVE | B61: 77 | D61: CT D/ART | E61: 62
A62: PRIMA MAX | B62: 27 | D62: TV BARRANDOV | E62: 63
A63: PRIMA MAX | B63: 74 | D63: KINO BARRANDOV | E63: 64
A64: PRIMA ZOOM | B64: 26 | D64: BARRANDOV KRIMI | E64: 65
A65: PRIMA ZOOM | B65: 75 | D65: NOVA | E65: 66
A66: PRIMA+1 | B66: 31 | D66: PRIMA | E66: 67
A67: REBEL | B67: 51 | D67: NOVA ACTION | E67: 68
A68: RELAX | B68: 50 | D68: NOVA CINEMA | E68: 69
A69: RETRO MUSIC | B69: 35 | D69: PRIMA COOL | E69: 70
A70: SEZNAM,CZ | B70: 7 | D70: CS MYSTERY | E70: 71
A71: SLAGER MUSIC | B71: 53 | D71: SLAGER MUSIC | E71: 72
A72: SLAGER MUSIC | B72: 72 | D72: SLAGER ORIGINAL | E72: 73
A73: SLAGER ORIGINAL | B73: 52 | D73: SLAGER ORIGINAL | E73: 73
A74: SLAGER ORIGINAL | B74: 73 | D74: PRIMA MAX | E74: 74
A75: SLAGER ORIGINAL | B75: 73 | D75: PRIMA ZOOM | E75: 75
A76: SPEKTRUM HOME | B76: 10 | D76: CNN PRIMA STAR | E76: 76
A77: SPORT | B77: 19 | D77: PRIMA LOVE | E77: 77
A78: SPORT TV8 | B78: 8 | D78: OK | E78: 77
A79: TELEVIZE PŘES | B79: 58 | D79: PRIMA KRIMI | E79: 79
A80: TEST 1 | B80: 13 | D80: CNN PRIMA SHOW | E80: 80
A81: TEST 2 | B81: 14 | D81: NOVA FUN | E81: 81
A82: TV BARRANDOV | B82: 4 | D82: FILM BOX O2+ | E82: 82
A83: TV BARRANDOV | B83: 63 | D83: CNN PRIMA NEWS | E83: 83
A84: TV NOE | B84: 3 | D84: MNAM TV | E84: 84
A85: WARNER TV | B85: 11 | D85: NOVA | E85: 1008

Sheet Návod
A1: R | B1: rok
A2: P | B2: půlrok
A3: Č | B3: čtvrtrok
A4: M | B4: měsíc
A5: T | B5: týden
A6: MP | B6: poslední za měsíc
A11: RP | B11: poslední za rok
A12: N | B12: narozeniny
A13: xxx | B13: 1-999 opakování po dnech

Sheet PlatbySlužby

Sheet Lékaři
A1: Martin Kadlas
A2: r.č. 500526236
A3: martin@kadlas.com
A4: 739694648
A6: 2025-04-24 | B6: oční velká kontrola | C6: 09:30:00 | D6: hod
A7: 2025-08-01 | B7: objednat na ušní
A8: 2025-08-07 | B8: diabetologie | C8: 09:40:00 | D8: hod
A9: 2025-09-23 | B9: kordiologie | C9: 09:00:00 | D9: hod
A10: 2025-10-01 | B10: objednat injekce covid, chřipka….
A11: 2025-11-01 | B11: objednat na screening plic
A12: 2025-11-04 | B12: objednat gastroentelogii
A13: 2025-11-05 | B13: krev pro gastroentelogii
A14: 2025-12-15 | B14: objednat na endokrinologii
A15: 2026-01-01 | B15: objednat na injekci proti klíšťat§ům
A16: 2026-02-02 | B16: objednat na urologii vzít vodu
A17: 2026-03-03 | B17: objednat k zubaři nové protézy na 1. února
A18: 2027-02-02 | B18: objednat na Tetanus
A19: 2028-02-28 | B19: objednat na endoskopii a gastroskopii na 12.4.28

Sheet Minárová
C2: splatnost dubnového nájmu je 25.3. | D2: splatnost květnového nájmu je 25.4. | E2: splatnost červnového nájmu nájmu je 25.5. | F2: splatnost vyúčtování 2024
B3: den uhrazení
B4: 2025-03-25
B5: =B4+1 -> 2025-03-26 | C5: 50
B6: 2025-03-27 | C6: 50
B7: 2025-03-28 | C7: 50
B8: 2025-03-29 | C8: 50
B9: 2025-03-30 | C9: 50
B10: 2025-03-31 | C10: 50
B11: 2025-04-01 | C11: 50
B12: 2025-04-02 | C12: 50
B13: 2025-04-03 | C13: 50
B14: 2025-04-04 | C14: 50
B15: 2025-04-05 | C15: 50
B16: 2025-04-06 | C16: 50
B17: 2025-04-07 | C17: 50
B18: 2025-04-08 | C18: 50
B19: 2025-04-09 | C19: 50
B20: 2025-04-10 | C20: 50
B21: 2025-04-11 | C21: 50
B22: 2025-04-12 | C22: 50
B23: 2025-04-13 | C23: 50
B24: 2025-04-14 | C24: 50
B25: 2025-04-15 | C25: 50
B26: 2025-04-16 | C26: 50
B27: 2025-04-17 | C27: 50
B28: 2025-04-18 | C28: 50
B29: 2025-04-19 | C29: 50
B30: 2025-04-20 | C30: 50
B31: 2025-04-21 | C31: 50
B32: 2025-04-22 | C32: 50
B33: 2025-04-23 | C33: 50
B34: 2025-04-24 | C34: 50
B35: 2025-04-25 | C35: 50
B36: 2025-04-26 | C36: 50 | D36: 50
B37: 2025-04-27 | C37: 50 | D37: 50
B38: 2025-04-28 | C38: 50 | D38: 50
B39: 2025-04-29 | C39: 50 | D39: 50
B40: 2025-04-30 | C40: 50 | D40: 50
B41: 2025-05-01 | C41: 50 | D41: 50
B42: 2025-05-02 | C42: 50 | D42: 50
B43: 2025-05-03 | C43: 50 | D43: 50
B44: 2025-05-04 | C44: 50 | D44: 50
B45: 2025-05-05 | C45: 50 | D45: 50
B46: 2025-05-06 | C46: 50 | D46: 50
B47: 2025-05-07 | C47: 50 | D47: 50
B48: 2025-05-08 | C48: 50 | D48: 50
B49: 2025-05-09 | C49: 50 | D49: 50
B50: 2025-05-10 | C50: 50 | D50: 50
B51: 2025-05-11 | C51: 50 | D51: 50
B52: 2025-05-12 | C52: 50 | D52: 50
B53: 2025-05-13 | C53: 50 | D53: 50
B54: 2025-05-14 | C54: 50 | D54: 50
B55: 2025-05-15 | C55: 50 | D55: 50
B56: 2025-05-16 | C56: 50 | D56: 50
B57: 2025-05-17 | C57: 50 | D57: 50
B58: 2025-05-18 | C58: 50 | D58: 50
B59: 2025-05-19 | C59: 50 | D59: 50
B60: 2025-05-20 | C60: 50 | D60: 50
B61: 2025-05-21 | C61: 50 | D61: 50
B62: 2025-05-22 | C62: 50 | D62: 50
B63: 2025-05-23 | C63: 50 | D63: 50
B64: 2025-05-24 | C64: 50 | D64: 50
B65: 2025-05-25 | C65: 50 | D65: 50
B66: 2025-05-26 | C66: 50 | D66: 50 | E66: 50
B67: 2025-05-27 | C67: 50 | D67: 50 | E67: 50
B68: 2025-05-28 | C68: 50 | D68: 50 | E68: 50
B69: 2025-05-29 | C69: 50 | D69: 50 | E69: 50
B70: 2025-05-30 | C70: 50 | D70: 50 | E70: 50
B71: 2025-05-31 | C71: 50 | D71: 50 | E71: 50 | F71: 50
B72: 2025-06-01 | C72: 50 | D72: 50 | E72: 50 | F72: 50
B73: 2025-06-02 | C73: 50 | D73: 50 | E73: 50 | F73: 50
B74: 2025-06-03 | C74: 50 | D74: 50 | E74: 50 | F74: 50
B75: 2025-06-04 | C75: 50 | D75: 50 | E75: 50 | F75: 50
B76: 2025-06-05 | C76: 50 | D76: 50 | E76: 50 | F76: 50
B77: 2025-06-06 | C77: 50 | D77: 50 | E77: 50 | F77: 50
B78: 2025-06-07 | C78: 50 | D78: 50 | E78: 50 | F78: 50
B79: 2025-06-08 | C79: 50 | D79: 50 | E79: 50 | F79: 50
B80: 2025-06-09 | C80: 50 | D80: 50 | E80: 50 | F80: 50
B81: 2025-06-10 | C81: 50 | D81: 50 | E81: 50 | F81: 50
B82: 2025-06-11 | C82: 50 | D82: 50 | E82: 50 | F82: 50
B83: 2025-06-12 | C83: 50 | D83: 50 | E83: 50 | F83: 50
B84: 2025-06-13 | C84: 50 | D84: 50 | E84: 50 | F84: 50
B85: 2025-06-14 | C85: 50 | D85: 50 | E85: 50 | F85: 50
B86: 2025-06-15 | C86: 50 | D86: 50 | E86: 50 | F86: 50
B87: 2025-06-16 | C87: 50 | D87: 50 | E87: 50 | F87: 50
B88: 2025-06-17 | C88: 50 | D88: 50 | E88: 50 | F88: 50
B89: 2025-06-18 | C89: 50 | D89: 50 | E89: 50 | F89: 50
B90: 2025-06-19 | C90: 50 | D90: 50 | E90: 50 | F90: 50
C91: =SUM(C5:C90) -> 4300 | D91: =SUM(D36:D90) -> 2750 | E91: =SUM(E66:E90) -> 1250 | F91: =SUM(F71:F90) -> 1000 | G91: =SUM(C91:F91) -> 9300
B92: 2025-06-20 | C92: 50 | D92: 50 | E92: 50 | F92: 50
B93: =B92+1 -> 2025-06-21 | C93: 50 | D93: 50 | E93: 50 | F93: 50
B94: 2025-06-22 | C94: 50 | D94: 50 | E94: 50 | F94: 50
B95: 2025-06-23 | C95: 50 | D95: 50 | E95: 50 | F95: 50
B96: 2025-06-24 | C96: 50 | D96: 50 | E96: 50 | F96: 50
B97: 2025-06-25 | C97: 50 | D97: 50 | E97: 50 | F97: 50
B98: 2025-06-26 | C98: 50 | D98: 50 | E98: 50 | F98: 50
B99: 2025-06-27 | C99: 50 | D99: 50 | E99: 50 | F99: 50
B100: 2025-06-28 | C100: 50 | D100: 50 | E100: 50 | F100: 50
B101: 2025-06-29 | C101: 50 | D101: 50 | E101: 50 | F101: 50
B102: 2025-06-30 | C102: 50 | D102: 50 | E102: 50 | F102: 50
B103: 2025-07-01 | C103: 50 | D103: 50 | E103: 50 | F103: 50
B104: 2025-07-02 | C104: 50 | D104: 50 | E104: 50 | F104: 50
B105: 2025-07-03 | C105: 50 | D105: 50 | E105: 50 | F105: 50
B106: 2025-07-04 | C106: 50 | D106: 50 | E106: 50 | F106: 50
B107: 2025-07-05 | C107: 50 | D107: 50 | E107: 50 | F107: 50
B108: 2025-07-06 | C108: 50 | D108: 50 | E108: 50 | F108: 50
B109: 2025-07-07 | C109: 50 | D109: 50 | E109: 50 | F109: 50
B110: 2025-07-08 | C110: 50 | D110: 50 | E110: 50 | F110: 50
B111: 2025-07-09 | C111: 50 | D111: 50 | E111: 50 | F111: 50
B112: 2025-07-10 | C112: 50 | D112: 50 | E112: 50 | F112: 50
B113: 2025-07-11 | C113: 50 | D113: 50 | E113: 50 | F113: 50
B114: 2025-07-12 | C114: 50 | D114: 50 | E114: 50 | F114: 50
B115: 2025-07-13 | C115: 50 | D115: 50 | E115: 50 | F115: 50
B116: 2025-07-14 | C116: 50 | D116: 50 | E116: 50 | F116: 50
B117: 2025-07-15 | C117: 50 | D117: 50 | E117: 50 | F117: 50
B118: 2025-07-16 | C118: 50 | D118: 50 | E118: 50 | F118: 50
B119: 2025-07-17 | C119: 50 | D119: 50 | E119: 50 | F119: 50
B120: 2025-07-18 | C120: 50 | D120: 50 | E120: 50 | F120: 50
B121: 2025-07-19 | C121: 50 | D121: 50 | E121: 50 | F121: 50
B122: 2025-07-20 | C122: 50 | D122: 50 | E122: 50 | F122: 50
B123: 2025-07-21 | C123: 50 | D123: 50 | E123: 50 | F123: 50
B124: 2025-07-22 | C124: 50 | D124: 50 | E124: 50 | F124: 50
B125: 2025-07-23 | C125: 50 | D125: 50 | E125: 50 | F125: 50
B126: 2025-07-24 | C126: 50 | D126: 50 | E126: 50 | F126: 50
B127: 2025-07-25 | C127: 50 | D127: 50 | E127: 50 | F127: 50
B128: 2025-07-26 | C128: 50 | D128: 50 | E128: 50 | F128: 50
B129: 2025-07-27 | C129: 50 | D129: 50 | E129: 50 | F129: 50
B130: 2025-07-28 | C130: 50 | D130: 50 | E130: 50 | F130: 50
B131: 2025-07-29 | C131: 50 | D131: 50 | E131: 50 | F131: 50
B132: 2025-07-30 | C132: 50 | D132: 50 | E132: 50 | F132: 50
B133: 2025-07-31 | C133: 50 | D133: 50 | E133: 50 | F133: 50
B134: 2025-08-01 | C134: 50 | D134: 50 | E134: 50 | F134: 50
B135: 2025-08-02 | C135: 50 | D135: 50 | E135: 50 | F135: 50
B136: 2025-08-03 | C136: 50 | D136: 50 | E136: 50 | F136: 50
B137: 2025-08-04 | C137: 50 | D137: 50 | E137: 50 | F137: 50
B138: 2025-08-05 | C138: 50 | D138: 50 | E138: 50 | F138: 50
B139: 2025-08-06 | C139: 50 | D139: 50 | E139: 50 | F139: 50
B140: 2025-08-07 | C140: 50 | D140: 50 | E140: 50 | F140: 50
B141: 2025-08-08 | C141: 50 | D141: 50 | E141: 50 | F141: 50
B142: 2025-08-09 | C142: 50 | D142: 50 | E142: 50 | F142: 50
B143: 2025-08-10 | C143: 50 | D143: 50 | E143: 50 | F143: 50
B144: 2025-08-11 | C144: 50 | D144: 50 | E144: 50 | F144: 50
B145: 2025-08-12 | C145: 50 | D145: 50 | E145: 50 | F145: 50
B146: 2025-08-13 | C146: 50 | D146: 50 | E146: 50 | F146: 50
B147: 2025-08-14 | C147: 50 | D147: 50 | E147: 50 | F147: 50
B148: 2025-08-15 | C148: 50 | D148: 50 | E148: 50 | F148: 50
B149: 2025-08-16 | C149: 50 | D149: 50 | E149: 50 | F149: 50
B150: 2025-08-17 | C150: 50 | D150: 50 | E150: 50 | F150: 50
B151: 2025-08-18 | C151: 50 | D151: 50 | E151: 50 | F151: 50
B152: 2025-08-19 | C152: 50 | D152: 50 | E152: 50 | F152: 50
B153: 2025-08-20 | C153: 50 | D153: 50 | E153: 50 | F153: 50
B154: 2025-08-21 | C154: 50 | D154: 50 | E154: 50 | F154: 50
B155: 2025-08-22 | C155: 50 | D155: 50 | E155: 50 | F155: 50
B156: 2025-08-23 | C156: 50 | D156: 50 | E156: 50 | F156: 50
B157: 2025-08-24 | C157: 50 | D157: 50 | E157: 50 | F157: 50
B158: 2025-08-25 | C158: 50 | D158: 50 | E158: 50 | F158: 50
B159: 2025-08-26 | C159: 50 | D159: 50 | E159: 50 | F159: 50
B160: 2025-08-27 | C160: 50 | D160: 50 | E160: 50 | F160: 50
B161: 2025-08-28 | C161: 50 | D161: 50 | E161: 50 | F161: 50
B162: 2025-08-29 | C162: 50 | D162: 50 | E162: 50 | F162: 50
B163: 2025-08-30 | C163: 50 | D163: 50 | E163: 50 | F163: 50
B164: 2025-08-31 | C164: 50 | D164: 50 | E164: 50 | F164: 50
B165: 2025-09-01 | C165: 50 | D165: 50 | E165: 50 | F165: 50
B166: 2025-09-02 | C166: 50 | D166: 50 | E166: 50 | F166: 50
B167: 2025-09-03 | C167: 50 | D167: 50 | E167: 50 | F167: 50
B168: 2025-09-04 | C168: 50 | D168: 50 | E168: 50 | F168: 50
B169: 2025-09-05 | C169: 50 | D169: 50 | E169: 50 | F169: 50
B170: 2025-09-06 | C170: 50 | D170: 50 | E170: 50 | F170: 50
B171: 2025-09-07 | C171: 50 | D171: 50 | E171: 50 | F171: 50
B172: 2025-09-08 | C172: 50 | D172: 50 | E172: 50 | F172: 50
B173: 2025-09-09 | C173: 50 | D173: 50 | E173: 50 | F173: 50
B174: 2025-09-10 | C174: 50 | D174: 50 | E174: 50 | F174: 50
B175: 2025-09-11 | C175: 50 | D175: 50 | E175: 50 | F175: 50
B176: 2025-09-12 | C176: 50 | D176: 50 | E176: 50 | F176: 50
B177: 2025-09-13 | C177: 50 | D177: 50 | E177: 50 | F177: 50
B178: 2025-09-14 | C178: 50 | D178: 50 | E178: 50 | F178: 50
B179: 2025-09-15 | C179: 50 | D179: 50 | E179: 50 | F179: 50
B180: 2025-09-16 | C180: 50 | D180: 50 | E180: 50 | F180: 50
B181: 2025-09-17 | C181: 50 | D181: 50 | E181: 50 | F181: 50
B182: 2025-09-18 | C182: 50 | D182: 50 | E182: 50 | F182: 50
B183: 2025-09-19 | C183: 50 | D183: 50 | E183: 50 | F183: 50
B184: 2025-09-20 | C184: 50 | D184: 50 | E184: 50 | F184: 50
B185: 2025-09-21 | C185: 50 | D185: 50 | E185: 50 | F185: 50
B186: 2025-09-22 | C186: 50 | D186: 50 | E186: 50 | F186: 50
B187: 2025-09-23 | C187: 50 | D187: 50 | E187: 50 | F187: 50
B188: 2025-09-24 | C188: 50 | D188: 50 | E188: 50 | F188: 50
B189: 2025-09-25 | C189: 50 | D189: 50 | E189: 50 | F189: 50
B190: 2025-09-26 | C190: 50 | D190: 50 | E190: 50 | F190: 50
B191: 2025-09-27 | C191: 50 | D191: 50 | E191: 50 | F191: 50
B192: 2025-09-28 | C192: 50 | D192: 50 | E192: 50 | F192: 50
B193: 2025-09-29 | C193: 50 | D193: 50 | E193: 50 | F193: 50
B194: 2025-09-30 | C194: 50 | D194: 50 | E194: 50 | F194: 50
B195: 2025-10-01 | C195: 50 | D195: 50 | E195: 50 | F195: 50
B196: 2025-10-02 | C196: 50 | D196: 50 | E196: 50 | F196: 50
B197: 2025-10-03 | C197: 50 | D197: 50 | E197: 50 | F197: 50
B198: 2025-10-04 | C198: 50 | D198: 50 | E198: 50 | F198: 50
B199: 2025-10-05 | C199: 50 | D199: 50 | E199: 50 | F199: 50
B200: 2025-10-06 | C200: 50 | D200: 50 | E200: 50 | F200: 50
B201: 2025-10-07 | C201: 50 | D201: 50 | E201: 50 | F201: 50
... 2 more rows

Sheet soud
A1: 2024-08-01 | C1: smlouva | E1: první nájemní smlouva
A2: 2024-08-02 | B2: Minárová | C2: sms | E2: nájemníci si stěžují na hluk
A3: 2024-08-26 | B3: Minárová | C3: sms | D3: 2024-09-01 | E3: upozornění na prodlení nájmu
A4: 2024-08-27 | B4: Minárová | C4: sms | D4: 2024-09-01 | E4: upozornění na prodlení nájmu
A5: 2024-10-08 | B5: Minárová | C5: mail | E5: hluk
A6: 2024-11-26 | B6: Minárová | C6: sms | D6: 2024-12-01 | E6: upozornění na prodlení nájmu
A7: 2024-11-27 | B7: Minárová | C7: sms | D7: 2024-12-01 | E7: upozornění na prodlení nájmu
A8: 2024-12-27 | B8: Minárová | C8: sms | D8: 2025-01-01 | E8: upozornění na prodlení nájmu
A9: 2025-01-05 | B9: Minárová | C9: sms | E9: stížnost na hluk v domě
A10: 2025-01-17 | B10: Minárová | C10: mail | E10: neplacení a hluk
A11: 2025-01-17 | B11: Minárová | C11: sms | E11: stížnost na hluk v domě
A12: 2025-01-27 | B12: Minárová | D12: 2025-02-01 | E12: upozornění na prodlení nájmu
A13: 2025-02-07 | B13: Minárová | C13: sms | E13: stížnost na hluk v domě
A14: 2025-02-28 | B14: Minárová | C14: sms | D14: 2025-03-01 | E14: upozornění na prodlení nájmu
A15: 2025-03-08 | B15: Minárová | C15: sms | D15: 2025-03-01 | E15: upozornění na prodlení nájmu
A16: 2025-03-08 | C16: smlouva | E16: druhá nájemní smlouva
A17: 2025-03-10 | B17: Minárová | C17: sms | D17: 2025-03-01 | E17: upozornění na prodlení nájmu
A18: 2025-03-24 | B18: Minárová | C18: sms | D18: 2025-04-01 | E18: upozornění na prodlení nájmu
A19: 2025-03-26 | B19: Minárová | C19: sms | D19: 2025-04-01 | E19: upozornění na prodlení nájmu
A20: 2025-03-27 | B20: Minárová | C20: sms | D20: 2025-04-01 | E20: upozornění na prodlení nájmu
A21: 2025-03-28 | B21: Minárová | C21: sms | D21: 2025-04-01 | E21: upozornění na prodlení nájmu
A22: 2025-03-30 | B22: Minárová | C22: sms | D22: 2025-04-01 | E22: upozornění na prodlení nájmu
A23: 2025-03-31 | B23: Minárová | C23: sms | D23: 2025-04-01 | E23: upozornění na prodlení nájmu
A24: 2025-04-01 | B24: Minárová | C24: sms | D24: 2025-04-01 | E24: upozornění na prodlení nájmu
A25: 2025-04-03 | B25: Minárová | C25: dop. dopis | E25: přehled dluhů
A26: 2025-04-04 | B26: Minárová | C26: sms | D26: 2025-04-01 | E26: upozornění na prodlení nájmu
A27: 2025-04-05 | B27: Minárová | C27: sms | D27: 2025-04-01 | E27: upozornění na prodlení nájmu
A28: 2025-04-06 | B28: Minárová | C28: sms | D28: 2025-04-01 | E28: upozornění na prodlení nájmu
A29: 2025-04-06 | B29: Minárová | C29: mail | E29: přehled dluhů
A30: 2025-04-10 | B30: Minárová | C30: mail | E30: upozornění na možnost výzvy a soud
A31: 2025-04-13 | B31: Minárová | C31: sms | E31: upozornění na prodlení nájmu
A32: 2025-04-16 | B32: Minárová | C32: dop. dopis | E32: výzva před podáním žaloby
A33: 2025-04-22 | B33: Minárová | C33: mail | E33: výzva před podáním žaloby
A34: 2025-05-07 | C34: dop. dopis | E34: výzva
A35: 2025-05-16 | B35: Minárová | C35: mail | E35: vyúčtování 2024
A36: 2025-05-16 | C36: dop. dopis | E36: vyúčtování 2024
A37: 2025-06-05 | B37: Minárová | C37: sms | D37: dva nájmy | E37: upozornění na prodlení nájmu
A38: 2025-06-19 | B38: Minárová | C38: mail | E38: urgence
A39: 2025-06-21 | B39: Minárová | C39: mail | E39: urgence
A40: 2025-07-07 | B40: Minárová | C40: mail | E40: vyúčtování 2025 a žalobní upozornění
A41: 2025-09-13 | B41: Minár | C41: sms | D41: dluh | E41: upozornění na mail

Sheet Pivovary
A1: 18. 1. 2025 – pivovar Šedivák, Bohnice
A2: 26. 1. 2025 – pivovar Kolkovna, Výstaviště Holešovice
A3: 9. 2. 2025 – Kbelský pivovar
A4: 16. 2. 2025 – Pivovarský dům Benedikt, Ječná
A5: 1. 3. 2025 – pivovar Strahov – Sv. Norbert
A6: 16. 3. 2é25 – pivovar Beznoska, Prosek
A7: 30. 3. 2025 – pivovar Lajka, Letná
A9: Pivovar MIKULÁŠ
A10: Malá Strana
A12: Pivovar COBOLIS
A13: Metro Ládví
A15: LOĎ PIVOVAR
A16: Štefánikův Most
A18: Pivovar MOUCHA
A19: Braník
A20: Tram nádraží Braník
A22: Pivovar MARÍNA
A23: Holešovice
A25: Pivovar U FLEKŮ
A26: Křemencova 11
A28: Pivovar LAJKA
A29: Letná, U Akademie
A31: Pivovar U TŘÍ RŮŽÍ
A32: Husova 10
A34: VINOHRADSKÝ PIVOVAR
A35: Korunní 2506
A36: Tram. Orionka
A38: Pivovar VIKTOR
A39: Husitská 72
A41: Pivovar NÁRODNÍ
A42: Vedle ND
A44: Pivovar BOHEMIA GOOSE
A45: Vodičkova
A46: (dříve novoměstský pivovar)
A48: Pivovar HORYMÍR
A49: Radotín
A50: Bus nádraží Radotín
A52: POČERNICKÝ PIVOVAR
A53: Dolní Počernice
A54: Bus škola Dolní Počernice
A56: Pivovar U MEDVÍDKŮ
A57: Na Perštýně 7
A59: Pivovar PROKOPÁK
A60: Bus 104 Klukovice
A62: Pivovar U SUPA
A63: Celetná 22
A65: Pivovar HOSTIVAR H1
A66: Lochotínská 656
A68: Bus Hostivařský pivovar nebo Řepčická
A70: Pivovar VOJANŮV DVŮR
A71: U Lužického semináře 21 (Malostranská)
A73: Pivovar HOSTIVAR H2
A74: Hornoměcholupská 750 / 115
A75: Bus Nádraží Horní Měcholupy
A77: Pivovar FUZE
A78: Na Florenci 2139 (Masaryčka)
A80: JIHOMĚSTSKÝ PIVOVAR
A81: Chodov, Podjavorinské 11
A82: Bus Hněvkovského
A84: Pivovar BUBENEČ
A85: Bubenečská 33 (pod Hradčanskou)
A86: Bus 131 Ronalda Reagana
A88: Pivovar POČERŇÁK
A89: Bus, vlak nádraží Horní Počernice
A91: Pivovar KOLČAVKA
A92: Lihovarská 12 (Balabenka)
A94: Pivovar SPOJOVNA
A95: U Kunratického lesa 1801
A96: Bus Na Jelenách
A98: Pivovar KYLIÁN
A99: Nad Kolčavkou 8 (Balabenka)
A101: Pivovar ŘEPORYJE
A102: Bus Řeporyjské náměstí
A104: Pivo KARLÍN
A105: Butterfly, Pernerova
A106: Tram Urxova
A108: SOUSEDSKÝ PIVOVAR BAŠTA
A109: Nusle, vedle restaurace U Bansethů
A111: Pivovar DVA KOHOUTI
A112: Tram Karlínské náměstí
A114: BAD FLASH BEERS
A115: Na Pecích 1044/46, Kobylisy
A116: Tram Líbeznická
A118: Pivovar U BULOVKY

Sheet Informace
A1: mobily | B1: 739694648
B2: 737041786
B3: 733152051 | C3: Redmi 13C 5G | D3: 620286 | E3: Pin1 | F3: 7300 | G3: Pin2 | H3: 9592 | I3: Puk1 | J3: 62723799 | K3: Puk2 | L3: 60487525 | M3: *101#
A4: adresy | B4: Na Na Hranicích 674/18, 181 00
B5: U Rybníka č.e 328, 25066 | F5: 115/20 | G5: 669 | H5: pro kontejnery | I5: vs je: | J5: 2134239310
A6: wifi | B6: Název sítě: klienti | C6: Heslo: NovaSlunecnice-2023
A7: NAS | B7: pkaNAS.LOCAL | C7: KADLASM | D7: Puma02011
A8: občanka | B8: pinpinpin
A9: řidičák
A10: techničák
B11: pžřívěs
A13: nas žižkov | B13: https://94.230.152.222:6443/
A14: Slunečnice | B14: 86.49.88.238

Sheet _#Archiv
A1: 1900-01-02 | B1: Semerád léky
A2: 2009-01-08 | B2: H
A3: 2009-01-22 | B3: H
A4: 2009-01-31 | B4: Mažice
A5: 2009-02-05 | B5: H
A6: 2009-02-08 | B6: Honza
A7: 2009-02-18 | B7: Divadlo
A8: 2009-02-19 | B8: H
A9: 2009-03-05 | B9: H
A10: 2009-03-19 | B10: H
A11: 2009-04-02 | B11: H
A12: 2009-04-16 | B12: H
A13: 2009-04-30 | B13: H
A14: 2009-05-14 | B14: H
A15: 2009-05-21 | B15: Vlastička
A16: 2009-05-28 | B16: H
A17: 2009-06-11 | B17: H
A18: 2009-06-25 | B18: H
A19: 2009-07-09 | B19: H
A20: 2009-07-23 | B20: H
A21: 2009-07-30 | B21: Kateřina
A22: 2009-08-06 | B22: H
A23: 2009-08-20 | B23: H
A24: 2009-08-29 | B24: Zuzana
A25: 2009-08-30 | B25: Zuzana
A26: 2009-09-03 | B26: H
A27: 2009-09-17 | B27: H
A28: 2009-10-01 | B28: H
A29: 2009-10-15 | B29: H
A30: 2009-10-17 | B30: Říčky
A31: 2009-10-18 | B31: Říčky
A32: 2009-10-22 | B32: Bw
A33: 2009-10-29 | B33: H
A34: 2009-11-12 | B34: H
A35: 2009-11-14 | B35: Drážďany
A36: 2009-11-21 | B36: Šumava
A37: 2009-11-26 | B37: H
A38: 2009-12-10 | B38: H
A39: 2009-12-14 | B39: večírekMí
A40: 2009-12-17 | B40: večírekMa
A41: 2009-12-22 | B41: Právníci
A42: 2009-12-24 | B42: H
A43: 2009-12-30 | B43: Mažice
A44: 2009-12-31 | B44: Mažice
A45: 2010-01-01 | B45: Mažice
A46: 2010-01-02 | B46: Mažice
A47: 2010-01-07 | B47: H
A48: 2010-01-21 | B48: H
A49: 2010-01-25 | B49: Hokej
A50: 2010-02-04 | B50: H
A51: 2010-02-18 | B51: H
A52: 2010-02-19 | B52: Hokej
A53: 2010-03-04 | B53: H
A54: 2010-03-18 | B54: H
A55: 2010-04-01 | B55: H
A56: 2010-04-03 | B56: Mažice:Prokop Andršt Hrubý
A57: 2010-04-06 | B57: Zdenek oslava
A58: 2010-04-09 | B58: Mažice:Bobek Jíšová
A59: 2010-04-10 | B59: Přechod
A60: 2010-04-11 | B60: Přechod
A61: 2010-04-15 | B61: H
A62: 2010-04-29 | B62: H
A63: 2010-04-30 | B63: Zabíjačka
A64: 2010-05-01 | B64: Zabíjačka
A65: 2010-05-02 | B65: Zabíjačka
A66: 2010-05-08 | B66: Mažice:Hlas Nejezchleba Kovács
A67: 2010-05-13 | B67: H
A68: 2010-05-27 | B68: H
A69: 2010-05-29 | B69: Zdiby
A70: 2010-06-10 | B70: H
A71: 2010-06-12 | B71: Mažice:MIŠÍK ČDG
A72: 2010-06-24 | B72: H
A73: 2010-06-25 | B73: Mažice:Poutníci
A74: 2010-06-25 | B74: Vrchlabí
A75: 2010-06-26 | B75: Vrchlabí
A76: 2010-06-27 | B76: Vrchlabí
A77: 2010-07-03 | B77: Mažice:Pospíšil5P
A78: 2010-07-08 | B78: H
A79: 2010-07-15 | B79: Růže 14:00
A80: 2010-07-16 | B80: Růže
A81: 2010-07-17 | B81: Růže
A82: 2010-07-22 | B82: H
A83: 2010-07-29 | B83: oslava Kateřina
A84: 2010-08-05 | B84: H
A85: 2010-08-13 | B85: Mažice:Cop
A86: 2010-08-19 | B86: H
A87: 2010-08-21 | B87: Říčky
A88: 2010-08-22 | B88: Říčky
A89: 2010-09-02 | B89: H
A90: 2010-09-02 | B90: Litomyšl večer
A91: 2010-09-03 | B91: Litomyšl
A92: 2010-09-03 | B92: Mažice:Žalman
A93: 2010-09-04 | B93: Litomyšl
A94: 2010-09-05 | B94: Litomyšl
A95: 2010-09-14 | B95: Kryocentrum
A96: 2010-09-16 | B96: H
A97: 2010-09-17 | B97: Mažice:Mišík ETC
A98: 2010-09-30 | B98: H
A99: 2010-10-09 | B99: ŘíčkyMír
A100: 2010-10-10 | B100: ŘíčkyMír
A101: 2010-10-14 | B101: H
A102: 2010-10-18 | B102: DispečinkMetra
A103: 2010-10-21 | B103: Bw
A104: 2010-10-28 | B104: H
A105: 2010-10-30 | B105: Kanalizace
A106: 2010-11-05 | B106: Lenora
A107: 2010-11-06 | B107: Lenora
A108: 2010-11-07 | B108: Lenora
A109: 2010-11-11 | B109: H
A110: 2010-11-25 | B110: H
A111: 2010-12-06 | B111: večírekMí
A112: 2010-12-09 | B112: H
A113: 2010-12-16 | B113: večírekMa
A114: 2010-12-23 | B114: H
A115: 2010-12-30 | B115: Mažice
A116: 2011-01-01 | B116: Mažice
A117: 2011-01-02 | B117: Mažice
A118: 2011-01-06 | B118: H
A119: 2011-01-16 | B119: Radúza
A120: 2011-01-20 | B120: H
A121: 2011-02-03 | B121: H
A122: 2011-02-09 | B122: BalbínKojan
A123: 2011-02-17 | B123: H
A124: 2011-02-24 | B124: Bw
A125: 2011-03-03 | B125: H
A126: 2011-03-11 | B126: Vrchlabí
A127: 2011-03-12 | B127: Vrchlabí
A128: 2011-03-13 | B128: Vrchlabí
A129: 2011-03-17 | B129: H
A130: 2011-03-29 | B130: P.Janda
A131: 2011-03-31 | B131: H
A132: 2011-04-14 | B132: H
A133: 2011-04-28 | B133: H
A134: 2011-05-12 | B134: H
A135: 2011-05-15 | B135: Vízek
A136: 2011-05-28 | B136: ZdibyMír
A137: 2011-06-03 | B137: Žďár
A138: 2011-06-04 | B138: Žďár
A139: 2011-06-05 | B139: Žďár
A140: 2011-06-09 | B140: H
A141: 2011-06-23 | B141: H
A142: 2011-06-24 | B142: Safari
A143: 2011-06-25 | B143: Safari
A144: 2011-06-26 | B144: Safari
A145: 2011-07-02 | B145: RP3
A146: 2011-07-03 | B146: RP3
A147: 2011-07-04 | B147: RP3
A148: 2011-07-05 | B148: RP3
A149: 2011-07-06 | B149: RP3
A150: 2011-07-07 | B150: H
A151: 2011-07-07 | B151: RP3
A152: 2011-07-08 | B152: RP3
A153: 2011-07-09 | B153: RP3
A154: 2011-07-14 | B154: Folková růže
A155: 2011-07-15 | B155: Folková růže
A156: 2011-07-16 | B156: Folková růže
A157: 2011-07-21 | B157: H
A158: 2011-08-04 | B158: H
A159: 2011-08-18 | B159: H
A160: 2011-08-26 | B160: Říčky
A161: 2011-08-27 | B161: Říčky
A162: 2011-08-28 | B162: Říčky
A163: 2011-09-01 | B163: H
A164: 2011-09-15 | B164: H
A165: 2011-09-23 | B165: RP5
A166: 2011-09-24 | B166: RP5
A167: 2011-09-25 | B167: RP5
A168: 2011-09-26 | B168: RP5
A169: 2011-09-27 | B169: RP5
A170: 2011-09-28 | B170: RP5
A171: 2011-09-29 | B171: H
A172: 2011-10-07 | B172: ŘíčkyMír
A173: 2011-10-08 | B173: ŘíčkyMír
A174: 2011-10-09 | B174: ŘíčkyMír
A175: 2011-10-13 | B175: H
A176: 2011-10-27 | B176: H
A177: 2011-11-04 | B177: Lenora
A178: 2011-11-05 | B178: Lenora
A179: 2011-11-06 | B179: Lenora
A180: 2011-11-10 | B180: H
A181: 2011-11-15 | B181: Bw
A182: 2011-11-24 | B182: H
A183: 2011-12-08 | B183: H
A184: 2011-12-15 | B184: večírekMa
A185: 2011-12-19 | B185: večírekMí
A186: 2011-12-22 | B186: H
A187: 2012-01-05 | B187: H
A188: 2012-01-19 | B188: H
A189: 2012-02-02 | B189: H
A190: 2012-02-14 | B190: Metro
A191: 2012-02-16 | B191: H
A192: 2012-03-01 | B192: H
A193: 2012-03-07 | B193: ŠkodaMB
A194: 2012-03-15 | B194: H
A195: 2012-03-29 | B195: H
A196: 2012-04-12 | B196: H
A197: 2012-04-26 | B197: H
A198: 2012-05-05 | B198: Sněžka
A199: 2012-05-06 | B199: Sněžka
A200: 2012-05-10 | B200: H
... 4025 more rows

Sheet Odkazy
A1: b | B1: https://identita.csob.cz | C1: k P@P1
A2: zoo | B2: https://www.zoohit.cz/checkout/finish | C2: k P
A3: alza | C3: e P
A4: amazon | C4: e P
A5: androidforum | C5: k P
A6: avemberg | C6: e P
A7: bauhaus | C7: e P
A8: csob | C8: k P1@P1
A9: facebook | C9: e P1P1
A10: firefox | C10: e P1P0 | D10: AMQB 1QR5 0BBD SKYM ET03 QN4W MPB8 NFN2
A11: forpsi | C11: e P1@P0
A12: google | C12: e MKMK | D12: pkadlas1@gmail.com Konevova61
A13: gosund | C13: eg P
A14: ikea | C14: e P
A15: kadlas.com | C15: a ttt
A16: lidl | C16: e P1@P1
A17: datschr | C17: 5z557w P | D17: kadlas PPP
A18: mojeid | C18: k PPP
A19: openai.com | C19: e P1@P1@
A20: seynam | C20: MKMK
A21: kadlasm@outlook.cz | C21: M@M
A22: kadlasm@seznam.cz | C22: P@P0
A23: martin@kadlas.com | B23: https://email.forpsi.com/cgi-bin/ajaxmail | C23: P@P0

Sheet Léky
A1: počet | B1: lék | C1: číslo | D1: počet | E1: Kč | F1: Semerád | G1: nemoc | I1: Lékař | J1: Adresa
A2: 1 | B2: Rosumop 20ml TBL FLM 100 0-0-1 | C2: 1 | D2: 90 | E2: 0 | F2: Ano | G2: E78.2 Smíšená hyperlipidémie - cholesterol | H2: Praktický | I2: MUDr. Karel Semerád | J2: Roháčova 24-26/268, P3
A3: 2 | B3: Milurit 100mg TBL NOB 50 nebo Purinol 100mg 100 0-1-0 | C3: 2 | D3: 50 | E3: 56 | F3: Ano | G3: kyselina močová | H3: Praktický | I3: MUDr. Karel Semerád | J3: Roháčova 24-26/268, P3
A4: 1 | B4: Combair 100mg 2-0-2 | C4: 3 | D4: 100 | E4: 117 | F4: Ano | G4: I10 Esenciální hypertenze | H4: Kardiologie | I4: MUDr. Jiří Povolný | J4: Bubenečská 10/283. Obec: P6
A5: 1 | B5: Verospiron 25mg TBL NOB 100 1-0-0 | C5: 3 | D5: 100 | E5: 117 | F5: Ano | G5: I10 Esenciální hypertenze | H5: Kardiologie | I5: MUDr. Jiří Povolný | J5: Bubenečská 10/283. Obec: P6
A6: 1 | B6: Prestarium Neo Forte 10mg TBL FLM 90 (3x30) 1-0-0 nalačno | C6: 4 | D6: 90 | E6: 196 | F6: Ano | G6: I10 Esenciální hypertenze | H6: Kardiologie | I6: MUDr. Jiří Povolný | J6: Bubenečská 10/283. Obec: P6
B7: _Old Novalgin 1-0-1 | G7: Spinální stenoza - páteř | H7: Neurologie | I7: MUDr. Irena Zadáková | J7: Olšanská 7, P3
B8: _Old Ostropestřec Mariánský 1-0-1 | G8: Polypragmasie - játra | H8: Gastroentelogie | I8: MUDr. Václav Chytil | J8: Musílkova55,P5
B9: _Old Pregabalin TEVA 150mg CPS DUR 56 0-0-1 | C9: 9 | G9: E11.9 DMII na PAD - neuropatie DK | H9: Diabetologie | I9: MUDr. Lucie Hoskovcová | J9: Karlovo nam. 325/7, P2
A10: 2 | B10: GodAsal 100mg/50mg TBL NOB 100 II 0-1-0 s jídlem (Anopirin) | C10: 5 | D10: 60 | E10: 75 | F10: Ano | G10: I10 Esenciální hypertenze | H10: Kardiologie | I10: MUDr. Jiří Povolný | J10: Bubenečská 10/283. Obec: P6
B11: _Old Punkce Hyaluronová kys. | G11: Artróza | H11: Ortopedie | I11: MUDr. Tomáš Hudec | J11: Milíčova 1, P3
A12: 3 | B12: Ascorutin 100mg/20mg TBL FLM 50 (5x10) 1-0-1 | C12: 6 | D12: 50 | E12: 98 | F12: Ano | G12: M17.0 Primární gonartróza | H12: Revmatologie | I12: MUDr. Markéta Honzlová | J12: Hartigova 205, P3
B13: _Old Trimbow 2-0-2 | G13: astma alergie | H13: Alergologie | I13: MUDr. Veronika Rychnovská | J13: Hartigova 2360/203, Praha 3
B14: Euthyrox 100 1x1 | C14: 7 | D14: 100 | G14: E03.9 Hypetoróza - štítná žláza | H14: Endokrinologie | I14: MUDr. Richard Stejskal | J14: Musílkova55,P5
B15: Zexitor 10000mg TBL PRO 56 1-0-0 | C15: 8 | D15: 60 | G15: E11.9 DMII na PAD - cukrovka | H15: Diabetologie | I15: MUDr. Lucie Hoskovcová | J15: Karlovo nam. 325/7, P2
B16: Helicid 20mg 1-0-0 | C16: 9 | G16: reflux | H16: Diabetologie | I16: MUDr. Lucie Hoskovcová | J16: Karlovo nam. 325/7, P2
B17: Vigantol 0,5mg/ml POR GTT SOL 1x10ml 10kapek 1xtýdně s tukem | C17: 10 | G17: E11.9 DMII na PAD - cukrovka | H17: Diabetologie | I17: MUDr. Lucie Hoskovcová | J17: Karlovo nam. 325/7, P2
B18: Xalatan 0,050mg/ml OPH GTT SOL 1x2,5ml 0-0-1 gtt bilat | D18: 90 | G18: Hypertensis intraocularis | H18: Oční | I18: MUDR. Alena Moravová | J18: Olšanská 7, P3
B19: Trulicity 1,5mg INJ SOL PEP 4x0; 5ml 1x týdně | D19: injekce | G19: E11.9 DMII na PAD - cukrovka | H19: Diabetologie | I19: MUDr. Lucie Hoskovcová | J19: Karlovo nam. 325/7, P2

Sheet Léky Semerád
A1: Ascorutin 100mg/20mg TBL FLM 50 (5x10) 1-0-1
A2: GodAsal 100mg/50mg TBL NOB 100 II 0-1-0 s jídlem (Anopirin)
A3: Milurit 100mg TBL NOB 50 nebo Purinol 100mg 100 0-1-0
A4: Prestarium Neo Forte 10mg TBL FLM 90 (3x30) 1-0-0 nalačno
A5: Rosumop 20ml TBL FLM 100 0-0-1
A6: Verospiron 25mg TBL NOB 100 1-0-0
A8: prosím o tyto léky na čtvrt roku.

Sheet CukrVáhy
A1: Martin Kadlas - 500526/236
A2: datum | B2: cukr 8hod | C2: cukr 10hod | D2: váha | E2: tlak | F2: tlak
A3: 2026-02-07 | B3: 6.5 | C3: 8.1 | D3: 110.1 | E3: 74 | F3: 140
A4: 2026-02-14 | B4: 5.5 | C4: 8.1 | D4: 110.3 | E4: 92 | F4: 149
A5: 2026-02-17 | B5: 6.1 | C5: 6.8 | D5: 110.5 | E5: 78 | F5: 136
A6: 2026-02-24 | B6: 6.3 | C6: 8.1 | D6: 110.7 | E6: 93 | F6: 133
A7: 2026-02-28 | B7: 9.1 | C7: 8.5 | D7: 110.9 | E7: 95 | F7: 136 | K7: +
A8: 2026-03-02 | B8: 5.5 | C8: 7.5 | D8: 111.1 | E8: 74 | F8: 136
A9: 2026-03-07 | B9: 6.8 | C9: 7.3 | D9: 111.3 | E9: 93 | F9: 133
A10: 2026-03-21 | B10: 6.9 | C10: 7 | D10: 111.5 | E10: 91 | F10: 135
A11: 2026-03-28 | B11: 8.2 | C11: 8.4 | D11: 111.7 | E11: 74 | F11: 140
A12: 2026-04-07 | B12: 6.3 | C12: 7.6 | D12: 111.9 | E12: 92 | F12: 149
A13: 2026-04-19 | B13: 7.5 | C13: 9 | D13: 112.1 | E13: 75 | F13: 135
A14: 2026-04-30 | B14: 7.9 | C14: 7.6 | D14: 112.3 | E14: 80 | F14: 140
A15: 2026-05-07 | B15: 8 | C15: 9.3 | D15: 111.9 | E15: 92 | F15: 149
A16: 2026-05-14 | B16: 8.9 | C16: 9.6 | D16: 110.1 | E16: 74 | F16: 140
A17: 2026-05-19 | B17: 8.5 | C17: 7 | D17: 110.3 | E17: 92 | F17: 149
A18: 2026-05-25 | B18: 6.2 | C18: 8.3 | D18: 110.5 | E18: 78 | F18: 136
A19: 2026-06-06 | B19: 8.1 | C19: 10.7 | D19: 110.7 | E19: 93 | F19: 133
A20: 2026-06-14 | B20: 8 | C20: 8.5 | D20: 110.9 | E20: 95 | F20: 136
A21: 2026-06-18 | B21: 6.1 | C21: 8.3 | D21: 111.1 | E21: 74 | F21: 136
A22: 2026-07-04 | B22: 6.8 | C22: 9.1
A23: 2026-07-05 | B23: 6.5 | C23: 7.3
A24: 2026-07-14 | B24: 6.7 | C24: 9 | E24: 88 | F24: 129
A25: 2026-07-31 | B25: 10.1 | C25: 11.1
A26: 2026-08-01 | B26: 7.2 | C26: 7.2 | E26: 2hod po obědě | F26: 8.4
A27: 2026-08-08 | B27: 6.3 | C27: 8.4

Sheet #Narozeniny
A1: 1927-08-19 | B1: Mirek | C1: narozeniny | E1: =DATE(2000,MONTH(A1),DAY(A1)) -> 2000-08-19
A2: 1929-04-29 | B2: Jarmila | C2: narozeniny | E2: =DATE(2000,MONTH(A2),DAY(A2)) -> 2000-04-29
A3: 1930-02-04 | B3: Jarmila | C3: svátek | E3: =DATE(2000,MONTH(A3),DAY(A3)) -> 2000-02-04
A4: 1931-03-27 | B4: Kopčo | C4: narozeniny | E4: =DATE(2000,MONTH(A4),DAY(A4)) -> 2000-03-27
A5: 1932-01-17 | B5: Lukášová | C5: narozeniny
A6: 1935-06-28 | B6: tetaA | C6: narozeniny | E6: =DATE(2000,MONTH(A6),DAY(A6)) -> 2000-06-28
A7: 1935-08-13 | B7: tetaA | C7: svátek | E7: =DATE(2000,MONTH(A7),DAY(A7)) -> 2000-08-13
A8: 1940-04-07 | B8: Evža | C8: narozeniny
A9: 1941-06-06 | B9: Jindra | C9: narozeniny
A10: 1941-09-25 | B10: Aladár | C10: narozeniny
A11: 1942-09-22 | B11: taťkaV | C11: narozeniny | E11: =DATE(2000,MONTH(A11),DAY(A11)) -> 2000-09-22
A12: 1943-06-13 | B12: taťkaV | C12: svátek | E12: =DATE(2000,MONTH(A12),DAY(A12)) -> 2000-06-13
A13: 1943-08-22 | B13: Kamelský | C13: narozeniny
A14: 1944-09-12 | B14: Richter | C14: narozeniny
A15: 1944-12-09 | B15: mamkaV | C15: narozeniny | E15: =DATE(2000,MONTH(A15),DAY(A15)) -> 2000-12-09
A16: 1945-06-27 | B16: MarieŽ | C16: narozeniny
A17: 1945-09-12 | B17: Marie | C17: svátek | E17: =DATE(2000,MONTH(A17),DAY(A17)) -> 2000-09-12
A18: 1945-10-26 | B18: AlenkaH | C18: narozeniny
A19: 1945-10-26 | B19: AlenkaNow | C19: narozeniny | E19: =DATE(2000,MONTH(A19),DAY(A19)) -> 2000-10-26
A20: 1946-05-24 | B20: KarelBen | C20: narozeniny
A21: 1946-10-11 | B21: Racek | C21: narozeniny
A22: 1947-05-14 | B22: Hříbalka | C22: narozeniny | E22: =DATE(2000,MONTH(A22),DAY(A22)) -> 2000-05-14
A23: 1947-09-08 | B23: Horák | C23: narozeniny
A24: 1948-05-05 | B24: PetrČ | C24: narozeniny
A25: 1948-10-28 | B25: Jarda | C25: narozeniny
A26: 1949-03-13 | B26: Vlastička | C26: svátek
A27: 1949-04-27 | B27: Jarda | C27: svátek
A28: 1949-05-19 | B28: Vlastička | C28: narozeniny
A29: 1949-06-20 | B29: JanaA | C29: narozeniny
A30: 1949-06-20 | B30: JanaA | C30: narozeniny
A31: 1949-08-28 | B31: Zuzana | C31: narozeniny
A32: 1950-04-03 | B32: Zdeněk | C32: narozeniny
A33: 1950-04-08 | B33: Bohouš | C33: narozeniny
A34: 1950-04-15 | B34: LáďaK | C34: narozeniny
A35: 1950-05-26 | B35: Já | C35: narozeniny | E35: =DATE(2000,MONTH(A35),DAY(A35)) -> 2000-05-26
A36: 1950-05-26 | B36: MartinK | C36: narozeniny
A37: 1950-06-12 | B37: LáďaJ | C37: narozeniny
A38: 1950-06-27 | B38: LáďaJ | C38: svátek
A39: 1950-08-11 | B39: Zuzana | C39: svátek
A40: 1950-10-03 | B40: Bohouš | C40: svátek
A41: 1950-11-11 | B41: Já | C41: svátek
A42: 1951-01-23 | B42: Zdeněk | C42: svátek
A43: 1952-05-11 | B43: Tobíšek | C43: narozeniny | E43: =DATE(2000,MONTH(A43),DAY(A43)) -> 2000-05-11
A44: 1952-08-11 | B44: tatZuz | C44: svátek | E44: =DATE(2000,MONTH(A44),DAY(A44)) -> 2000-08-11
A45: 1952-08-16 | B45: Luďa | C45: narozeniny | E45: =DATE(2000,MONTH(A45),DAY(A45)) -> 2000-08-16
A46: 1952-08-17 | B46: LenkaKn | C46: narozeniny
A47: 1954-03-21 | B47: JanaT | C47: narozeniny | E47: =DATE(2000,MONTH(A47),DAY(A47)) -> 2000-03-21
A48: 1954-05-03 | B48: Madla | C48: narozeniny
A49: 1954-06-24 | B49: HonzaL | C49: svátek | E49: =DATE(2000,MONTH(A49),DAY(A49)) -> 2000-06-24
A50: 1954-07-25 | B50: Olda | C50: narozeniny
A51: 1955-02-27 | B51: HonzaL | C51: narozeniny | E51: =DATE(2000,MONTH(A51),DAY(A51)) -> 2000-02-27
A52: 1955-03-05 | B52: Eliška | C52: narozeniny
A53: 1955-07-03 | B53: Olda | C53: svátek
A54: 1955-07-22 | B54: ZdenkaK | C54: narozeniny
A55: 1955-10-03 | B55: LenkaR | C55: narozeniny | E55: =DATE(2000,MONTH(A55),DAY(A55)) -> 2000-10-03
A56: 1955-10-05 | B56: Eliška | C56: svátek
A57: 1955-11-14 | B57: Jířa | C57: narozeniny
A58: 1955-11-17 | B58: VláďaS | C58: narozeniny | E58: =DATE(2000,MONTH(A58),DAY(A58)) -> 2000-11-17
A59: 1956-02-15 | B59: Jířa | C59: svátek
A60: 1956-02-21 | B60: LenkaR | C60: svátek | E60: =DATE(2000,MONTH(A60),DAY(A60)) -> 2000-02-21
A61: 1956-05-23 | B61: VláďaS | C61: svátek | E61: =DATE(2000,MONTH(A61),DAY(A61)) -> 2000-05-23
A62: 1956-05-24 | B62: Jana | C62: svátek
A63: 1956-06-18 | B63: ČernohotskáH | C63: narozeniny
A64: 1957-03-29 | B64: EvaF | C64: narozeniny | E64: =DATE(2000,MONTH(A64),DAY(A64)) -> 2000-03-29
A65: 1957-04-16 | B65: Kříž | C65: narozeniny | E65: =DATE(2000,MONTH(A65),DAY(A65)) -> 2000-04-16
A66: 1957-04-22 | B66: PetrF | C66: narozeniny | E66: =DATE(2000,MONTH(A66),DAY(A66)) -> 2000-04-22
A67: 1957-06-29 | B67: Petr | C67: svátek | E67: =DATE(2000,MONTH(A67),DAY(A67)) -> 2000-06-29
A68: 1957-09-08 | B68: DanaČ | C68: narozeniny
A69: 1957-12-24 | B69: EvaF | C69: svátek | E69: =DATE(2000,MONTH(A69),DAY(A69)) -> 2000-12-24
A70: 1959-03-25 | B70: ZdenkaT | C70: narozeniny
A71: 1959-04-22 | B71: Libor | C71: narozeniny
A72: 1959-06-23 | B72: Zdenka | C72: svátek
A73: 1959-07-23 | B73: Libor | C73: svátek
A74: 1959-10-04 | B74: JanaN | C74: narozeniny
A75: 1960-05-23 | B75: Markvartová | C75: narozeniny
A76: 1962-06-19 | B76: Standa | C76: narozeniny | E76: =DATE(2000,MONTH(A76),DAY(A76)) -> 2000-06-19
A77: 1963-11-03 | B77: Ally | C77: narozeniny
A78: 1964-01-21 | B78: MartinB | C78: narozeniny
A79: 1964-08-13 | B79: Ally | C79: svátek
A80: 1964-09-28 | B80: Květa | C80: narozeniny
A81: 1964-12-08 | B81: Květa | C81: svátek
A82: 1965-07-29 | B82: TondaV | C82: narozeniny | E82: =DATE(2000,MONTH(A82),DAY(A82)) -> 2000-07-29
A83: 1965-08-05 | B83: Kateřina | C83: narozeniny
A84: 1965-11-25 | B84: Kateřina | C84: svátek
A85: 1966-03-24 | B85: Radka | C85: narozeniny | E85: =DATE(2000,MONTH(A85),DAY(A85)) -> 2000-03-24
A86: 1966-09-14 | B86: Radka | C86: svátek | E86: =DATE(2000,MONTH(A86),DAY(A86)) -> 2000-09-14
A87: 1968-06-13 | B87: Tonda | C87: svátek | E87: =DATE(2000,MONTH(A87),DAY(A87)) -> 2000-06-13
A88: 1969-04-06 | B88: Áňa | C88: narozeniny
A89: 1970-02-19 | B89: Dáša | C89: narozeniny
A90: 1970-12-20 | B90: Dáša | C90: svátek
A91: 1971-07-12 | B91: Andrea | C91: narozeniny
A92: 1972-06-29 | B92: Andrea | C92: svátek
A93: 1977-04-12 | B93: Kolářová | C93: narozeniny
A94: 1977-04-17 | B94: Sylva | C94: narozeniny | E94: =DATE(2000,MONTH(A94),DAY(A94)) -> 2000-04-17
A95: 1977-10-29 | B95: Sylva | C95: svátek | E95: =DATE(2000,MONTH(A95),DAY(A95)) -> 2000-10-29
A96: 1978-04-29 | B96: PetrK | C96: narozeniny | E96: =DATE(2000,MONTH(A96),DAY(A96)) -> 2000-04-29
A97: 1979-03-29 | B97: Jura | C97: narozeniny | E97: =DATE(2000,MONTH(A97),DAY(A97)) -> 2000-03-29
A98: 1979-04-24 | B98: Jura | C98: svátek | E98: =DATE(2000,MONTH(A98),DAY(A98)) -> 2000-04-24
A99: 1979-06-08 | B99: Petra | C99: narozeniny | E99: =DATE(2000,MONTH(A99),DAY(A99)) -> 2000-06-08
A100: 1979-08-17 | B100: Petra | C100: svátek | E100: =DATE(2000,MONTH(A100),DAY(A100)) -> 2000-08-17
A101: 1979-08-24 | B101: Šárka | C101: narozeniny | E101: =DATE(2000,MONTH(A101),DAY(A101)) -> 2000-08-24
A102: 1980-05-03 | B102: KeclíkováB | C102: narozeniny
A103: 1980-06-30 | B103: Šárka | C103: svátek | E103: =DATE(2000,MONTH(A103),DAY(A103)) -> 2000-06-30
A104: 1981-07-24 | B104: StainerováA | C104: narozeniny
A105: 1981-12-22 | B105: Renča | C105: narozeniny
A106: 1983-10-24 | B106: Aleš | C106: narozeniny | E106: =DATE(2000,MONTH(A106),DAY(A106)) -> 2000-10-24
A107: 1984-04-13 | B107: Aleš | C107: svátek | E107: =DATE(2000,MONTH(A107),DAY(A107)) -> 2000-04-13
A108: 1984-08-15 | B108: Libuška | C108: narozeniny
A109: 1985-01-13 | B109: Mařenka | C109: narozeniny | E109: =DATE(2000,MONTH(A109),DAY(A109)) -> 2000-01-13
A110: 1986-09-05 | B110: OndraT | C110: narozeniny | E110: =DATE(2000,MONTH(A110),DAY(A110)) -> 2000-09-05
A111: 1988-06-07 | B111: Helča | C111: narozeniny
A112: 1994-08-07 | B112: Julianna | C112: narozeniny
A113: 2003-03-06 | B113: Mirek | C113: svátek | E113: =DATE(2000,MONTH(A113),DAY(A113)) -> 2000-03-06
A114: 2008-01-01 | C114: S
A115: 2008-05-01 | C115: S
A116: 2008-05-08 | C116: S
A117: 2008-07-05 | C117: S
A118: 2008-07-06 | C118: S
A119: 2008-09-28 | C119: S
A120: 2008-10-28 | C120: S
A121: 2008-11-17 | C121: S
A122: 2008-12-24 | C122: S
A123: 2008-12-25 | C123: S
A124: 2008-12-26 | C124: S
A125: 2009-04-12 | C125: V
A126: 2009-04-13 | C126: V
A127: 2009-04-23 | B127: Vojta | C127: svátek | E127: =DATE(2000,MONTH(A127),DAY(A127)) -> 2000-04-23
A128: 2009-10-18 | B128: Vojta | C128: narozeniny | E128: =DATE(2000,MONTH(A128),DAY(A128)) -> 2000-10-18
A129: 2010-04-04 | C129: V
A130: 2010-04-05 | C130: V
A131: 2010-09-18 | B131: VýročíAMHouska | C131: narozeniny
A132: 2011-03-31 | B132: PojistPř | C132: svátek | E132: =DATE(2000,MONTH(A132),DAY(A132)) -> 2000-03-31
A133: 2011-04-15 | B133: Lucie | C133: narozeniny | E133: =DATE(2000,MONTH(A133),DAY(A133)) -> 2000-04-15
A134: 2011-04-24 | C134: V
A135: 2011-04-25 | C135: V
A136: 2011-06-01 | B136: PojistAut | C136: svátek | E136: =DATE(2000,MONTH(A136),DAY(A136)) -> 2000-06-01
A137: 2011-08-19 | B137: PojistPř | C137: svátek | E137: =DATE(2000,MONTH(A137),DAY(A137)) -> 2000-08-19
A138: 2011-12-13 | B138: Lucie | C138: svátek | E138: =DATE(2000,MONTH(A138),DAY(A138)) -> 2000-12-13
A139: 2012-04-03 | B139: Richard | C139: svátek | E139: =DATE(2000,MONTH(A139),DAY(A139)) -> 2000-04-03
A140: 2012-04-09 | C140: V
A141: 2012-07-23 | B141: Richard | C141: narozeniny | E141: =DATE(2000,MONTH(A141),DAY(A141)) -> 2000-07-23
A142: 2013-04-01 | C142: V
A143: 2013-08-01 | B143: Denisa | C143: narozeniny | E143: =DATE(2000,MONTH(A143),DAY(A143)) -> 2000-08-01
A144: 2013-08-01 | B144: Tereza | C144: narozeniny | E144: =DATE(2000,MONTH(A144),DAY(A144)) -> 2000-08-01
A145: 2013-09-11 | B145: Deniska | C145: svátek | E145: =DATE(2000,MONTH(A145),DAY(A145)) -> 2000-09-11
A146: 2013-10-15 | B146: Tereza | C146: svátek | E146: =DATE(2000,MONTH(A146),DAY(A146)) -> 2000-10-15
A147: 2014-02-15 | B147: Ondra | C147: narozeniny | E147: =DATE(2000,MONTH(A147),DAY(A147)) -> 2000-02-15
A148: 2014-04-21 | C148: V
A149: 2014-07-04 | B149: Barborka | C149: narozeniny | E149: =DATE(2000,MONTH(A149),DAY(A149)) -> 2000-07-04
A150: 2014-11-30 | B150: Ondrové | C150: svátek | E150: =DATE(2000,MONTH(A150),DAY(A150)) -> 2000-11-30
A151: 2014-12-04 | B151: Barborka | C151: svátek | E151: =DATE(2000,MONTH(A151),DAY(A151)) -> 2000-12-04
A152: 2015-02-25 | B152: TKO | C152: svátek
A153: 2015-03-25 | B153: DaňZisk | C153: svátek | E153: =DATE(2000,MONTH(A153),DAY(A153)) -> 2000-03-25
A154: 2015-04-06 | C154: V
A155: 2015-05-25 | B155: DaňNemov | C155: svátek
A156: 2016-03-25 | C156: V
A157: 2016-03-28 | C157: V
A158: 2017-04-14 | C158: V
A159: 2017-04-15 | C159: V
A160: 2017-04-16 | C160: V
A161: 2017-04-17 | C161: V
A162: 2018-02-28 | B162: OndraT | C162: narozeniny | E162: =DATE(2000,MONTH(A162),DAY(A162)) -> 2000-02-28
A163: 2018-03-30 | C163: V
A164: 2018-03-31 | C164: V
A165: 2018-04-01 | C165: V
A166: 2018-04-02 | C166: V
A167: 2019-04-19 | C167: V
A168: 2019-04-20 | C168: V
A169: 2019-04-21 | C169: V
A170: 2019-04-22 | C170: V
A171: 2020-04-10 | C171: V
A172: 2020-04-11 | C172: V
A173: 2020-04-12 | C173: V
A174: 2020-04-13 | C174: V
A175: 2021-01-31 | B175: přiznání nemovitost | C175: svátek
A176: 2021-03-20 | B176: PřiznáníZiskZaplatit | C176: svátek
A177: 2021-04-02 | C177: V
A178: 2021-04-03 | C178: V
A179: 2021-04-04 | C179: V
A180: 2021-04-05 | C180: V
A181: 2021-05-20 | B181: ZaplatitDvěDaně | C181: svátek
A182: 2022-04-15 | C182: V
A183: 2022-04-16 | C183: V
A184: 2022-04-17 | C184: V
A185: 2022-04-18 | C185: V
A186: 2023-04-07 | C186: V
A187: 2023-04-08 | C187: V
A188: 2023-04-09 | C188: V
A189: 2023-04-10 | C189: V
A190: 2024-03-29 | C190: V
A191: 2024-03-30 | C191: V
A192: 2024-03-31 | C192: V
A193: 2024-04-01 | C193: V
A194: 2025-04-18 | C194: V
A195: 2025-04-19 | C195: V
A196: 2025-04-20 | C196: V
A197: 2025-04-21 | C197: V
A198: 2025-05-26 | C198: V
A199: 2025-11-18 | B199: RomanaKeramika | C199: svátek
A200: 2026-04-03 | C200: V
... 4 more rows

Sheet Úkoly
B1: doma | D1: chata | F1: Internet | H1: Koupit | J1: Žižkov
A2: 0 | B2: kočičí dvířka, vpn proton, bioton Vladimíra Vavřincová | C2: 0 | D2: najít kompresor dofouknout vozejk a kolečko natáhnout síť opravit lucernu, navrtat pochodně, krmítko, ostříhat keře, vysát bahno z jezera Vzít mastičku a jídla mobily nabíječky léky | E2: 0 | F2: objednat kožní | G2: 0 | H2: Ludarudl brýle | I2: 0 | J2: stůl změřit a popsat dveře, dát do serverovny v garáži nalepit na dveře, vrtačka?
A3: 1 | B3: \\Informace\Já\_Rodina\Realitka\podklady.docx | C3: 0 | D3: čapí hnízdo, Vraňany | E3: 1 | F3: objednat práce nas | G3: 1 | H3: výměna oleje 280742 (272304) | I3: 1 | J3: instalovat chytrou žárovku zásuvku
A4: 1 | B4: kniha hovno Karlín, 8 ve Spartaku, sušenky v kuksu, sněžka, roubíček žíba na prameni, pejskové u pužďuch sázava kanoe | C4: 1 | D4: chlor do studny | E4: 2 | F4: stereomikroma převod | G4: 1 | H4: výměna oleje po 15000km | I4: 1 | J4: přivést žárovky do Amerických kamen, pilku na záclony
A5: 1 | B5: kniha potok a císařské výtisky | C5: 1 | D5: kamery přilepit | E5: 3 | F5: annanasarchiv | G5: 1 | H5: zajet na odbor výstavby | I5: 1 | J5: zkusit klíče od úklidové skříňky i od jawy
A6: 1 | B6: kniha stavěli jsme májku mladý budovatel | C6: 1 | D6: mastička pečovatelce | E6: 3 | F6: závěť | G6: 1 | H6: zásuvka s krytkou, bonboniera,magy,vajíčka | I6: 1 | J6: změřit serverovnu pro poličku
A7: 1 | B7: nájemní smlouvy do knihy | C7: 1 | D7: nafotit v autě olej | E7: 4 | F7: koupit zarážku na okno | G7: 2 | H7: Ikea hrnky lžičky | I7: 4 | J7: jak začít s dotacemi
A8: 1 | B8: najít smlouvu Java výpově%d | C8: 1 | D8: najít dobíječku na čtyřkolku dobít | E8: 5 | F8: domovní řád, doplnit hlášení počtu uživatelů | G8: 2 | H8: koupit sklenice na pivo, na kafe | I8: 4 | J8: opravit stůl
A9: 1 | B9: napsat realitce | C9: 1 | D9: naostřit nože | E9: 5 | F9: stáhnout ffffilm tři přání | G9: 2 | H9: přepážky na okapy | I9: 4 | J9: Pošík jak na lešení
A10: 1 | B10: naskenovat zvýšená nájmu zkontrolovat | C10: 1 | D10: natřít vše namodro a ledničky | E10: 5 | F10: zap klienti/NovaSlunecnice-2023 | G10: 11 | H10: zjistit venca štastný klíčany bagr | I10: 4 | J10: prasklá okna v prostředním pokoji
A11: 1 | B11: podívat se na parkování | C11: 1 | D11: opravit kabel lucerny | E11: 6 | F11: najít film Buď chlap | G11: 15 | H11: cedule na dveře 910/3A….. | I11: 4 | J11: schránka pro svj
A12: 1 | B12: přečíst zápis svj | C12: 1 | D12: opravit zásuvku u ohniště | E12: 7 | F12: železářství Vela | G12: 100 | H12: zámečnictví Partizánu gravírování | I12: 4 | J12: vyšťourat bezpeč dveře
A13: 1 | B13: sklenáři | C13: 1 | D13: ostříhat okno dveře vše | E13: 8 | F13: svěřenecký fond | G13: 711 | H13: sud 500l s poklopem a výpustí | I13: 5 | J13: natřít americká kamna
A14: 1 | B14: vyčistit google | C14: 1 | D14: test pitné vody, filtr, lékárna | E14: 9 | F14: zap barvy, dlažba E7-56 Dar34712 | G14: 811 | H14: elektordestička 11x11 na Žižkov | I14: 5 | J14: vyčistit skříně diavou
A15: 1 | B15: zapsat do kontaktů rodné číslo O a L | C15: 1 | D15: zprovoznit vapku a umýt cihly | E15: 11 | F15: koupit tříkolku vozíky skůtry medikal | I15: 5 | J15: vyčistit židle
A16: 1 | B16: zrušit onedrive | C16: 1 | D16: žárovky do Amerických kamen
A17: 2 | B17: dodělat kalendářnaprogramovat fotografie, kalendář po deseti | C17: 2 | D17: natřít ledničky
A18: 2 | B18: Keso sw | C18: 2 | D18: přilepit novou kameru
A19: 2 | B19: najít sim kartu | C19: 2 | D19: přivézt desku na kanalizace na žižkov
A20: 2 | B20: objednat experta na vlhkost | C20: 2 | D20: zalepit okapy
A21: 2 | B21: odbor výstavby | C21: 4 | D21: nazelenit OSB desky a beton
A22: 2 | B22: počet nájemníků, depozita | C22: 4 | D22: opravit židle
A23: 2 | B23: pozvat Balíka peníze Mišterová koupě sklepa věcné břemeno fond | C23: 5 | D23: strojek do zámeckých hodin
A24: 2 | B24: pročíst povinosti Keso | C24: 6 | D24: zásuvky do pergol
A25: 2 | B25: stáhnout hesla
A26: 2 | B26: úklid, schránky
A27: 100 | B27: fotky do nas
A28: 140 | B28: filtr na vodu na kafe
A29: 150 | B29: měl Petr práva k podpronájmu?
A30: 160 | B30: pořádek v kontaktech
A31: 180 | B31: zapsat do kontaktů že gasterm Háša
A32: 190 | B32: objednat potah v Žamberku
A33: 200 | B33: zapsat pojištění tr platby
A34: 210 | B34: interface z kalendáře na standard
A35: 220 | B35: rodokmen

Sheet Kalendář
A1: srp 2026 | C1: zář 2026 | E1: říj 2026 | G1: lis 2026 | I1: pro 2026 | K1: led 2027 | M1: úno 2027 | O1: bře 2027 | Q1: dub 2027 | S1: kvě 2027 | U1: čvn 2027 | W1: čvc 2027 | Y1: srp 2027 | AA1: zář 2027 | AC1: říj 2027 | AE1: úno 2028 | AG1: srp 2030 | AI1: zář 2030 | AK1: dub 2031 | AM1: led 2033 | AO1: čvc 2033 | AQ1: kvě 2061
A2: 1 | C2: 1 | D2: H | E2: 1 | F2: Objnaledengastroaendo Objnaledengastroaendo urologObjednat | G2: 1 | I2: 1 | K2: 1 | L2: PojOdpovědnosti558 | M2: 1 | O2: 1 | P2: koupitInchema | Q2: 1 | S2: 1 | U2: 1 | V2: PojistAut STKPeugoat | W2: 1 | Y2: 1 | Z2: Denisa14 Tereza14 | AA2: 1 | AC2: 1 | AE2: 1 | AG2: 1 | AH2: KontrolaČEZPřemyšlení | AI2: 1 | AK2: 1 | AL2: injekceklíště | AM2: 1 | AO2: 1 | AQ2: 1
A3: 2 | C3: 2 | D3: EvaKoleno ker9 | E3: 2 | G3: 2 | I3: 2 | J3: ker9 | K3: 2 | M3: 2 | N3: H objTetanus | O3: 2 | P3: H | Q3: 2 | S3: 2 | U3: 2 | W3: 2 | Y3: 2 | AA3: 2 | AC3: 2 | AD3: ObjScreeningPlic20271031 | AE3: 2 | AG3: 2 | AI3: 2 | AK3: 2 | AM3: 2 | AO3: 2 | AQ3: 2
A4: 3 | C4: 3 | E4: 3 | F4: Bohouš LenkaR71 | G4: 3 | H4: Ally63 oční93 | I4: 3 | K4: 3 | M4: 3 | O4: 3 | Q4: 3 | R4: Zdeněk77 Richard | S4: 3 | T4: Madla73 KeclíkováB47 | U4: 3 | W4: 3 | X4: Olda | Y4: 3 | Z4: H | AA4: 3 | AC4: 3 | AE4: 3 | AG4: 3 | AI4: 3 | AK4: 3 | AM4: 3 | AO4: 3 | AQ4: 3
A5: 4 | C5: 4 | E5: 4 | F5: JanaN67 | G5: 4 | H5: ker9 | I5: 4 | J5: Barborka | K5: 4 | M5: 4 | N5: Jarmila | O5: 4 | Q5: 4 | S5: 4 | U5: 4 | W5: 4 | X5: Barborka13 | Y5: 4 | AA5: 4 | AC5: 4 | AE5: 4 | AG5: 4 | AI5: 4 | AK5: 4 | AM5: 4 | AO5: 4 | AQ5: 4
A6: 5 | C6: 5 | D6: OndraT40 | E6: 5 | F6: Eliška | G6: 5 | I6: 5 | K6: 5 | L6: H | M6: 5 | O6: 5 | P6: Eliška72 | Q6: 5 | S6: 5 | T6: PetrČ79 | U6: 5 | W6: 5 | Y6: 5 | Z6: Kateřina62 | AA6: 5 | AC6: 5 | AE6: 5 | AG6: 5 | AI6: 5 | AK6: 5 | AM6: 5 | AO6: 5 | AQ6: 5
A7: 6 | C7: 6 | E7: 6 | G7: 6 | I7: 6 | K7: 6 | M7: 6 | O7: 6 | P7: Mirek | Q7: 6 | R7: Áňa58 | S7: 6 | U7: 6 | V7: Jindra86 | W7: 6 | X7: H | Y7: 6 | AA7: 6 | AC7: 6 | AE7: 6 | AG7: 6 | AI7: 6 | AK7: 6 | AM7: 6 | AO7: 6 | AQ7: 6
A8: 7 | C8: 7 | E8: 7 | F8: ker9 | G8: 7 | I8: 7 | K8: 7 | M8: 7 | O8: 7 | Q8: 7 | R8: Evža87 | S8: 7 | U8: 7 | V8: Helča39 | W8: 7 | Y8: 7 | Z8: Julianna33 | AA8: 7 | AC8: 7 | AE8: 7 | AG8: 7 | AI8: 7 | AK8: 7 | AM8: 7 | AO8: 7 | AQ8: 7
A9: 8 | C9: 8 | D9: Horák79 DanaČ69 | E9: 8 | G9: 8 | I9: 8 | J9: Květa H | K9: 8 | M9: 8 | O9: 8 | Q9: 8 | R9: Bohouš77 | S9: 8 | U9: 8 | V9: Petra48 H | W9: 8 | Y9: 8 | AA9: 8 | AC9: 8 | AE9: 8 | AG9: 8 | AI9: 8 | AK9: 8 | AM9: 8 | AO9: 8 | AQ9: 8
A10: 9 | C10: 9 | D10: ker9 KončíAIRWAYNET | E10: 9 | G10: 9 | I10: 9 | J10: mamkaV82 ker9 | K10: 9 | M10: 9 | O10: 9 | Q10: 9 | S10: 9 | U10: 9 | W10: 9 | Y10: 9 | AA10: 9 | AC10: 9 | AE10: 9 | AG10: 9 | AI10: 9 | AK10: 9 | AM10: 9 | AO10: 9 | AQ10: 9
A11: 10 | C11: 10 | D11: NapraseKoleno15 | E11: 10 | G11: 10 | H11: H PojChaty2732Kč | I11: 10 | K11: 10 | M11: 10 | O11: 10 | Q11: 10 | S11: 10 | U11: 10 | W11: 10 | Y11: 10 | AA11: 10 | AC11: 10 | AE11: 10 | AG11: 10 | AI11: 10 | AK11: 10 | AM11: 10 | AO11: 10 | AQ11: 10
A12: 11 | C12: 11 | D12: Deniska | E12: 11 | F12: Racek80 | G12: 11 | H12: Já ker9 obnovitcertifikátchatBot | I12: 11 | K12: 11 | M12: 11 | O12: 11 | Q12: 11 | S12: 11 | T12: Tobíšek75 H | U12: 11 | W12: 11 | Y12: 11 | Z12: Zuzana tatZuz | AA12: 11 | AC12: 11 | AE12: 11 | AG12: 11 | AI12: 11 | AK12: 11 | AM12: 11 | AO12: 11 | AQ12: 11
A13: 12 | C13: 12 | D13: Richter82 Marie | E13: 12 | F13: urologie93 | G13: 12 | H13: alergie915 | I13: 12 | K13: 12 | M13: 12 | O13: 12 | Q13: 12 | R13: Kolářová50 | S13: 12 | U13: 12 | V13: LáďaJ77 | W13: 12 | X13: Andrea56 | Y13: 12 | AA13: 12 | AB13: KončíŘidičák | AC13: 12 | AE13: 12 | AG13: 12 | AI13: 12 | AK13: 12 | AM13: 12 | AO13: 12 | AQ13: 12 | AR13: KončíObčanka
A14: 13 | B14: tetaA Ally pivoHalasková | C14: 13 | E14: 13 | F14: H Semerádléky | G14: 13 | I14: 13 | J14: Lucie | K14: 13 | L14: Mařenka42 | M14: 13 | O14: 13 | P14: Vlastička | Q14: 13 | R14: Aleš H | S14: 13 | U14: 13 | V14: taťkaV Tonda | W14: 13 | Y14: 13 | AA14: 13 | AC14: 13 | AE14: 13 | AG14: 13 | AI14: 13 | AK14: 13 | AM14: 13 | AO14: 13 | AQ14: 13
A15: 14 | B15: odchod18 | C15: 14 | D15: Radka | E15: 14 | F15: ker9 | G15: 14 | H15: Jířa71 | I15: 14 | K15: 14 | M15: 14 | O15: 14 | Q15: 14 | S15: 14 | T15: Hříbalka80 | U15: 14 | W15: 14 | Y15: 14 | AA15: 14 | AC15: 14 | AE15: 14 | AG15: 14 | AI15: 14 | AK15: 14 | AM15: 14 | AO15: 14 | AQ15: 14
A16: 15 | B16: Libuška42 | C16: 15 | D16: H | E16: 15 | F16: Tereza | G16: 15 | I16: 15 | K16: 15 | M16: 15 | N16: Jířa Ondra13 | O16: 15 | Q16: 15 | R16: LáďaK77 Lucie16 | S16: 15 | T16: přípravanaSTK | U16: 15 | W16: 15 | Y16: 15 | AA16: 15 | AC16: 15 | AE16: 15 | AG16: 15 | AI16: 15 | AK16: 15 | AM16: 15 | AO16: 15 | AQ16: 15
A17: 16 | B17: Luďa74 | C17: 16 | D17: ker9 | E17: 16 | G17: 16 | I17: 16 | J17: ker9 | K17: 16 | M17: 16 | N17: H ZapKontejnery | O17: 16 | P17: H | Q17: 16 | R17: Kříž70 | S17: 16 | U17: 16 | W17: 16 | Y17: 16 | AA17: 16 | AC17: 16 | AE17: 16 | AG17: 16 | AI17: 16 | AK17: 16 | AM17: 16 | AO17: 16 | AQ17: 16
A18: 17 | B18: LenkaKn74 Petra | C18: 17 | E18: 17 | G18: 17 | H18: VláďaS71 | I18: 17 | K18: 17 | L18: Lukášová95 | M18: 17 | O18: 17 | Q18: 17 | R18: Sylva50 | S18: 17 | U18: 17 | W18: 17 | Y18: 17 | AA18: 17 | AC18: 17 | AE18: 17 | AG18: 17 | AI18: 17 | AK18: 17 | AM18: 17 | AO18: 17 | AQ18: 17
A19: 18 | B19: H Nowak | C19: 18 | D19: VýročíAMHouska16 | E19: 18 | F19: Vojta17 | G19: 18 | H19: RomanaKeramika ker9 | I19: 18 | K19: 18 | M19: 18 | O19: 18 | Q19: 18 | S19: 18 | U19: 18 | V19: ČernohotskáH71 | W19: 18 | Y19: 18 | AA19: 18 | AC19: 18 | AE19: 18 | AG19: 18 | AI19: 18 | AK19: 18 | AM19: 18 | AO19: 18 | AQ19: 18
A20: 19 | B20: Mirek99 PojistPř Nowak | C20: 19 | E20: 19 | G20: 19 | I20: 19 | K20: 19 | L20: H | M20: 19 | N20: Dáša57 | O20: 19 | Q20: 19 | S20: 19 | T20: Vlastička78 | U20: 19 | V20: Standa65 | W20: 19 | Y20: 19 | AA20: 19 | AC20: 19 | AE20: 19 | AG20: 19 | AI20: 19 | AK20: 19 | AM20: 19 | AO20: 19 | AQ20: 19
A21: 20 | B21: Nowak PojPřívěs200 | C21: 20 | E21: 20 | G21: 20 | I21: 20 | J21: Dáša | K21: 20 | M21: 20 | O21: 20 | P21: PřiznáníZiskZaplatit | Q21: 20 | S21: 20 | T21: ZaplatitDvěDaně | U21: 20 | V21: JanaA78 JanaA78 | W21: 20 | X21: H | Y21: 20 | AA21: 20 | AC21: 20 | AE21: 20 | AG21: 20 | AI21: 20 | AJ21: STKpřívěsKon | AK21: 20 | AM21: 20 | AN21: ProdloužitZTP!!! | AO21: 20 | AP21: KončíPrůkazZTP!!! | AQ21: 20
A22: 21 | B22: Nowak | C22: 21 | E22: 21 | F22: ker9 | G22: 21 | I22: 21 | K22: 21 | L22: MartinB63 | M22: 21 | N22: LenkaR | O22: 21 | P22: JanaT73 | Q22: 21 | S22: 21 | U22: 21 | W22: 21 | Y22: 21 | AA22: 21 | AC22: 21 | AE22: 21 | AG22: 21 | AI22: 21 | AK22: 21 | AM22: 21 | AO22: 21 | AQ22: 21
A23: 22 | B23: Kamelský83 | C23: 22 | D23: taťkaV84 | E23: 22 | G23: 22 | H23: zaplatitKadlas.com | I23: 22 | J23: Renča45 H | K23: 22 | M23: 22 | O23: 22 | Q23: 22 | R23: PetrF70 Libor68 | S23: 22 | U23: 22 | V23: H | W23: 22 | X23: ZdenkaK72 | Y23: 22 | AA23: 22 | AC23: 22 | AE23: 22 | AG23: 22 | AI23: 22 | AK23: 22 | AM23: 22 | AO23: 22 | AQ23: 22
A24: 23 | C24: 23 | D24: ker9 | E24: 23 | G24: 23 | I24: 23 | J24: ker9 kadlas.com | K24: 23 | L24: Zdeněk | M24: 23 | O24: 23 | Q24: 23 | R24: Vojta | S24: 23 | T24: VláďaS Markvartová67 | U24: 23 | V24: Zdenka | W24: 23 | X24: Libor Richard15 | Y24: 23 | AA24: 23 | AC24: 23 | AE24: 23 | AG24: 23 | AI24: 23 | AK24: 23 | AM24: 23 | AO24: 23 | AQ24: 23
A25: 24 | B25: Šárka47 | C25: 24 | E25: 24 | F25: Aleš43 | G25: 24 | H25: H | I25: 24 | J25: EvaF | K25: 24 | M25: 24 | O25: 24 | P25: Radka61 | Q25: 24 | R25: Jura | S25: 24 | T25: KarelBen81 Jana | U25: 24 | V25: HonzaL | W25: 24 | X25: StainerováA46 PojAuto5184 | Y25: 24 | AA25: 24 | AC25: 24 | AE25: 24 | AG25: 24 | AI25: 24 | AK25: 24 | AM25: 24 | AO25: 24 | AQ25: 24
A26: 25 | B26: Ríčky | C26: 25 | D26: Aladár85 | E26: 25 | G26: 25 | H26: Kateřina ker9 | I26: 25 | K26: 25 | M26: 25 | N26: TKO | O26: 25 | P26: ZdenkaT68 DaňZisk | Q26: 25 | S26: 25 | T26: DaňNemov H | U26: 25 | W26: 25 | X26: Olda73 | Y26: 25 | AA26: 25 | AC26: 25 | AE26: 25 | AG26: 25 | AI26: 25 | AK26: 25 | AM26: 25 | AO26: 25 | AQ26: 25
A27: 26 | B27: Ríčky | C27: 26 | E27: 26 | F27: AlenkaH81 AlenkaNow81 Cukr9 | G27: 26 | I27: 26 | K27: 26 | M27: 26 | O27: 26 | Q27: 26 | S27: 26 | T27: Já77 MartinK77 | U27: 26 | W27: 26 | Y27: 26 | AA27: 26 | AC27: 26 | AE27: 26 | AG27: 26 | AI27: 26 | AK27: 26 | AM27: 26 | AO27: 26 | AQ27: 26
A28: 27 | B28: Ríčky | C28: 27 | E28: 27 | F28: H | G28: 27 | I28: 27 | K28: 27 | M28: 27 | N28: HonzaL72 | O28: 27 | P28: Kopčo96 | Q28: 27 | R28: Jarda H | S28: 27 | U28: 27 | V28: MarieŽ82 LáďaJ | W28: 27 | Y28: 27 | AA28: 27 | AC28: 27 | AE28: 27 | AG28: 27 | AI28: 27 | AK28: 27 | AM28: 27 | AO28: 27 | AQ28: 27
A29: 28 | B29: Zuzana77 | C29: 28 | D29: Květa62 | E29: 28 | F29: Jarda78 ker9 | G29: 28 | I29: 28 | K29: 28 | L29: AlzaPlusZrušeno | M29: 28 | N29: OndraT09 | O29: 28 | Q29: 28 | S29: 28 | U29: 28 | V29: tetaA92 | W29: 28 | Y29: 28 | AA29: 28 | AC29: 28 | AE29: 28 | AF29: ObjEndoGastro12.4.28 | AG29: 28 | AI29: 28 | AK29: 28 | AM29: 28 | AO29: 28 | AQ29: 28
A30: 29 | C30: 29 | D30: H | E30: 29 | F30: Sylva | G30: 29 | I30: 29 | K30: 29 | O30: 29 | P30: EvaF70 Jura48 | Q30: 29 | R30: Jarmila98 PetrK49 | S30: 29 | U30: 29 | V30: Petr Andrea | W30: 29 | X30: TondaV62 | Y30: 29 | AA30: 29 | AC30: 29 | AE30: 29 | AG30: 29 | AI30: 29 | AK30: 29 | AM30: 29 | AO30: 29 | AQ30: 29
A31: 30 | C31: 30 | D31: ker9 KonecGondor Kardiologie9 | E31: 30 | G31: 30 | H31: Ondrové | I31: 30 | J31: ker9 | K31: 30 | O31: 30 | P31: H | Q31: 30 | R31: PříspěvkyChata | S31: 30 | U31: 30 | V31: Šárka | W31: 30 | Y31: 30 | AA31: 30 | AC31: 30 | AG31: 30 | AI31: 30 | AK31: 30 | AM31: 30 | AO31: 30 | AQ31: 30
A32: 31 | B32: příchod7 | E32: 31 | I32: 31 | K32: 31 | L32: přiznání nemovitost | O32: 31 | P32: PojistPř DaňZpříjmu | S32: 31 | T32: DaňZnemovitosti | W32: 31 | X32: KonecAubrecht | Y32: 31 | AC32: 31 | AG32: 31 | AM32: 31 | AO32: 31 | AQ32: 31

Sheet List1

Sheet #Událost
A1: 2026-07-01 | B1: propustka7 ker9
A2: 2026-07-01 | B2: ředkev
A3: 2026-07-02 | B3: SBČS14 | D3: Mlsnej kocour, Belgická 116/42
A4: 2026-07-03 | B4: Luďa14
A5: 2026-07-13 | B5: NovýPlánÚklidu
A6: 2026-07-14 | B6: Pošík17
A7: 2026-07-15 | B7: odchod18
A8: 2026-07-16 | B8: Janalázně9
A9: 2026-07-17 | B9: Vízek14
A10: 2026-07-18 | B10: Luďa9
A11: 2026-07-23 | B11: Luďa133
A12: 2026-07-24 | B12: Aqua12
A13: 2026-07-29 | B13: příchod7
A14: 2026-07-31 | B14: Balík93
A15: 2026-08-01 | B15: planetárium163
A16: 2026-08-06 | B16: pánKlub133
A17: 2026-08-12 | B17: vyzvednoutSTK
A18: 2026-08-13 | B18: pivoHalasková
A19: 2026-08-14 | B19: odchod18
A20: 2026-08-18 | B20: Nowak
A21: 2026-08-19 | B21: Nowak
A22: 2026-08-20 | B22: Nowak
A23: 2026-08-21 | B23: Nowak
A24: 2026-08-25 | B24: Ríčky
A25: 2026-08-26 | B25: Ríčky
A26: 2026-08-27 | B26: Ríčky
A27: 2026-08-31 | B27: příchod7
A28: 2026-09-02 | B28: EvaKoleno
A29: 2026-09-02 | B29: ker9
A30: 2026-09-09 | B30: ker9
A31: 2026-09-09 | B31: KončíAIRWAYNET
A32: 2026-09-10 | B32: NapraseKoleno15
A33: 2026-09-16 | B33: ker9
A34: 2026-09-23 | B34: ker9
A35: 2026-09-30 | B35: ker9
A36: 2026-09-30 | B36: KonecGondor
A37: 2026-10-01 | B37: Objnaledengastroaendo
A38: 2026-10-07 | B38: ker9
A39: 2026-10-14 | B39: ker9
A40: 2026-10-21 | B40: ker9
A41: 2026-10-28 | B41: ker9
A42: 2026-11-04 | B42: ker9
A43: 2026-11-11 | B43: ker9
A44: 2026-11-11 | B44: obnovitcertifikátchatBot | D44: viz list certifikát
A45: 2026-11-18 | B45: ker9
A46: 2026-11-22 | B46: zaplatitKadlas.com
A47: 2026-11-25 | B47: ker9
A48: 2026-12-02 | B48: ker9
A49: 2026-12-09 | B49: ker9
A50: 2026-12-16 | B50: ker9
A51: 2026-12-23 | B51: ker9
A52: 2026-12-30 | B52: ker9
A53: 2027-01-28 | B53: AlzaPlusZrušeno
A54: 2027-03-01 | B54: koupitInchema | D54: peroxid vodíku 65kg asi 2200Kč
A55: 2027-05-15 | B55: přípravanaSTK
A56: 2027-06-01 | B56: STKPeugoat
A57: 2027-07-31 | B57: KonecAubrecht
A58: 2027-09-12 | B58: KončíŘidičák
A59: 2030-08-01 | B59: KontrolaČEZPřemyšlení | D59: Dobrý den, platnost ověření u elektroměru číslo 1020670127 jsme prodloužili do konce roku 2030 (v souladu s vyhláškou č. 262/2000 Sb., § 5 odst. 2, v platném znění). Adresa odběrného místa U Rybníka E328, Zdiby 250 66, EAN 859182400609653053 (identifikační číslo odběrného místa elektřiny). Prodloužení jsme provedli na základě statistických metod bez fyzické kontroly elektroměru na odběrném místě. Ověření je v souladu s energetickým zákonem č. 458/2000 Sb., § 49 odst. 7, v platném znění. Váš požadavek související s distribucí elektrické energie můžete kromě standardních komunikačních kanálů vyřídit přes Distribuční portál nebo mobilní aplikaci PROUD. S pozdravem ČEZ Distribuce
A60: 2030-09-20 | B60: STKpřívěsKon
A61: 2033-01-20 | B61: ProdloužitZTP!!!
A62: 2033-07-20 | B62: KončíPrůkazZTP!!!
A63: 2061-05-12 | B63: KončíObčanka

Sheet #Zdraví
A1: 1900-01-06T07:12:00 | B1: covid14
A2: 2025-10-14 | B2: Semerád13papíry2000
A3: 2025-10-21 | B3: Zuby123
A4: 2025-10-23 | B4: Oko9
A5: 2025-10-24 | B5: JanaKřeče63 | D5: chotovická
A6: 2025-10-31 | B6: ScreePlíce93
A7: 2025-11-03 | B7: Plíce10
A8: 2025-11-03 | B8: Zuby13 | D8: Jiří Skalický Mazurská 2B Semerád
A9: 2025-11-30 | B9: SemerádLéky
A10: 2025-12-16 | B10: Zrzek103
A11: 2026-01-01 | B11: ObjIngKlíště
A12: 2026-01-10 | B12: VyhoditGodasal
A13: 2026-01-15 | B13: Zuby11?
A14: 2026-01-26 | B14: Srdce10 | D14: krev: hladina vápníku, fosfátů, hořčíku, cholesterolu, fosfatáze (vigantol)
A15: 2026-01-29 | B15: Oči93
A16: 2026-02-03 | B16: CukrKrev94 | D16: přinést krev od jiných a glukometr
A17: 2026-02-09 | B17: objednatTrulicity
A18: 2026-02-10 | B18: Zrzek83 | D18: ne tučně
A19: 2026-02-11 | B19: injekcekonec
A20: 2026-02-12 | B20: Zrzek123 | D20: na lačno
A21: 2026-02-14 | B21: VyhoditGodasal
A22: 2026-02-16 | B22: Urologie93
A23: 2026-02-19 | B23: Zuby114
A24: 2026-02-23 | B24: NováProtézaObj | D24: protézy od 3.2022, možná pět let do 3.2027
A25: 2026-03-06 | B25: ucho10
A26: 2026-03-16 | B26: SemerádInj10
A27: 2026-03-17 | B27: chytil11
A28: 2026-03-17 | B28: stejskal114
A29: 2026-03-19 | B29: CT93 | D29: 2hodiny nejíst vzít žádanku(nástěnka auto)
A30: 2026-03-26 | B30: Protéza93
A31: 2026-04-07 | B31: InjekceKlíště13
A32: 2026-04-13 | B32: Zuby93
A33: 2026-04-20 | B33: alergie1015jinde | D33: vzít screening plic
A34: 2026-04-22 | B34: Zubař123
A35: 2026-04-29 | B35: očníV93Semerád | D35: zpráva pro Semeráda
A36: 2026-05-04 | B36: SemerádLékyAuto
A37: 2026-05-04 | B37: zubní93
A38: 2026-05-14 | B38: Zuby12
A39: 2026-05-19 | B39: Dům13 Semerád15
A40: 2026-06-29 | B40: CukrMoč92 | D40: vzít oko, zeptat se na zprávu na řidičák
A41: 2026-07-13 | B41: SemerádLéky
A42: 2026-07-19 | B42: konecLéky
A43: 2026-07-28 | B43: oko93
A44: 2026-09-30 | B44: Kardiologie9
A45: 2026-10-01 | B45: Objnaledengastroaendo | D45: na březen zapsat kdy na krev
A46: 2026-10-01 | B46: urologObjednat
A47: 2026-10-12 | B47: urologie93
A48: 2026-10-13 | B48: Semerádléky
A49: 2026-10-26 | B49: Cukr9 | D49: budou nohy vzít měřič oči srdce krev léky gastro endo
A50: 2026-11-03 | B50: oční93
A51: 2026-11-12 | B51: alergie915
A52: 2027-02-02 | B52: objTetanus | D52: Kolonoskopie a též požádat o gastroskopii
A53: 2027-10-02 | B53: ObjScreeningPlic20271031
A54: 2028-02-28 | B54: ObjEndoGastro12.4.28 | D54: 6000Kč
A55: 2031-04-01 | B55: injekceklíště

Sheet Recepty
A1: Uzení kaprů
B2: 3xkapr 8kg cca pro 30lidí 2x10litrů npřevařeného nálevu výdy 0,8kg soli, jeden česnek, druhá bobkový nové pepř grilovací koření na ryby, unaložit více než 12hodin udit 6hodin při 60 až 70 stupňů

Sheet certifikát
A1: Co budeme dělat při příští obnově
A3: Certifikát platí do 11. 11. 2026. Ideálně ho obnovíme někdy kolem začátku listopadu, tedy s dostatečnou rezervou.
A5: 1. Spustíme Příkazový řádek jako správce
A7: Stejně jako dnes:
A9: Start → Příkazový řádek → pravé tlačítko → Spustit jako správce
A11: 2. Spustíme Certbot
A13: Použijeme:
A15: certbot certonly --manual --preferred-challenges dns -d nas.kadlas.com
A17: 3. Certbot nám vytvoří nový TXT záznam
A19: Zobrazí něco jako:
A21: _acme-challenge.nas.kadlas.com
A23: a pod tím novou dlouhou hodnotu.
A25: ⚠️ Hodnota bude při každém obnovení jiná.
A27: 4. Přihlásíme se do FORPSI
A29: V DNS pro kadlas.com upravíme TXT záznam:
A31: Hostname:
A33: _acme-challenge.nas
A35: Typ: TXT
A37: Value: nová hodnota, kterou nám ukáže Certbot.
A39: 5. Počkáme, až se TXT objeví na internetu
A41: Stejně jako dnes ho ověříme přes DNS kontrolu.
A43: Jakmile bude vidět, vrátíme se do Certbotu a stiskneme Enter.
A45: 6. Certbot vytvoří nový certifikát
A47: Opět dostaneme:
A49: cert.pem
A50: chain.pem
A51: fullchain.pem
A52: privkey.pem
A54: 7. Importujeme nový certifikát do Synology
A56: V Ovládací panel → Zabezpečení → Certifikát → Přidat → Importovat certifikát:
A58: Soukromý klíč → privkey.pem
A59: Certifikát → cert.pem
A60: Střední certifikát → chain.pem
A62: 8. Nastavíme ho pro web
A64: V Konfigurovat nastavíme:
A66: nas.kadlas.com:80/443 → nový certifikát nas.kadlas.com
A68: A pokud používáš:
A70: WebDAV → nový certifikát
A71: Synology Drive Server → nový certifikát
A73: 9. Ověříme
A75: Otevřeme:
A77: https://nas.kadlas.com
A79: a zkontrolujeme, že už není upozornění na certifikát.
A83: Jedna důležitá věc
A85: Původní TXT záznam ve FORPSI nemusíme předem mazat. Při další obnově Certbot vytvoří novou hodnotu a podle situace starou hodnotu nahradíme.
A87: Až se bude blížit listopad 2026, stačí mi napsat například:
A89: „Chci obnovit certifikát nas.kadlas.com.“
A91: A provedeme to spolu krok za krokem stejně jako dnes.

Sheet služby
D1: 3A | E1: 3B
A2: elektrika | B2: 2024-06-30 | C2: kWh | D2: 21354
A3: elektrika | B3: 2024-12-01 | C3: kWh | D3: 22464
A4: elektrika | B4: 2024-12-31 | C4: kWh | D4: 22762
A5: elektrika | B5: 2024-06-29 | C5: kWh | D5: =D4+(D4-D2) -> 24170 | F5: odhad
A6: elektrika | B6: 2025-06-30 | C6: kWh
A7: plyn | B7: 2024-06-30 | C7: m3 | D7: 3146
A8: plyn | B8: 2024-12-01 | C8: m3 | D8: 3339
A9: plyn | B9: 2024-12-31 | C9: m3 | D9: 3463
A10: plyn | B10: 2025-06-29 | C10: m3 | D10: =D9+(D9-D7) -> 3780 | F10: odhad
A11: plyn | B11: 2025-06-30 | C11: m3
A12: voda | B12: 2024-12-31 | C12: litrů | D12: 116549 | E12: 618674
A13: voda | B13: 2025-06-29 | C13: litrů | D13: 171380 | E13: 641577
A14: voda | B14: 2025-06-30 | C14: litrů

Sheet HistorieKniha
A1: babičkaJudu
A2: Jaké sportyjsem dělal
A3: hudební vzdělání

Sheet #Platby
A1: 2024-01-01 | B1: PojOdpovědnosti558 | C1: R | D1: a558
A2: 2024-03-31 | B2: DaňZpříjmu | C2: R
A3: 2024-04-30 | B3: PříspěvkyChata | C3: R
A4: 2024-05-31 | B4: DaňZnemovitosti | C4: R
A5: 2025-02-16 | B5: ZapKontejnery | C5: R | D5: do konce unora
A6: 2025-12-23 | B6: kadlas.com | C6: R | D6: a822
A7: 2026-07-24 | B7: PojAuto5184 | C7: R
A8: 2026-08-20 | B8: PojPřívěs200 | C8: R | D8: 200Kč povinné ručení
A9: 2026-11-10 | B9: PojChaty2732Kč | C9: R
